Workbook

Sheet START
B9: Algemene Directie Energie | K9: Direction Générale Energie
B10: Dienst Energiemonitoring & Elektriciteitssysteem | K10: Service Monitoring de l'Energie & Système Electrique
B11: Dienst Kwaliteit van Aardolieproducten | K11: Service Qualité des produits pétroliers
C14: MAANDELIJKSE PETROLEUMBALANS BALANCE PETROLIERE
C18: Gelieve te klikken op "Inhoud inschakelen" als er een beveiligingswaarschuwing verschijnt
C20: Cliquez sur "Activer les macros" si un message de sécurité apparaît.
C23: De macros in dit bestand zijn vrij van virussen
C25: Les macros de ce fichier sont sans virus.
C28: Indien u technische problemen heeft met dit bestand, kunt u ons contacteren op oil&biofuels@economie.fgov.be
C30: Si ce fichier vous pose de problèmes techniques, veuillez nous contacter à l'adresse suivante: oil&biofuels@economie.fgov.be

Sheet Intro (hidden)
B6: Algemene Directie Energie
B7: Dienst Energiemonitoring & Elektriciteitssysteem
B8: Dienst Kwaliteit van Aardolieproducten
B12: Aangever | E12: Naam/Nom
B13: Maand van aangifte | E13: 01 | F13: 2018
B15: Deze vragenlijst is opgesteld conform het Koninklijk Besluit van 15 november 2017 betreffende de rapportageverplichting van biobrandstoffen, minerale oliën en hun substitutieproducten van biologische oorsprong. De gegevens gevraagd in tabbladen 'Table 1', 'Table 2', Table 3' en 'Table 4' moeten bezorgd worden aan de Algemene Directie Energie, uiterlijk tegen de 20ste dag van de maand volgend op de maand van rapportering, zoals vastgelegd in artikel 6 van bovenvernoemd Koninklijk Besluit. Wat betreft deze tabbladen, kan het niet naleven van artikel 4, 6, 7 en 9 van bovenvernoemd Koninklijk Besluit resulteren in een geldboete van 1,24 euro tot 495,79 euro. De gegevens gevraagd vanaf het tabblad 'Biodiesel' moeten bezorgd worden aan de Algemene Directie Energie, uiterlijk tegen de laatste werkdag van de maand volgend op het kwartaal waarop de gegevens betrekking hebben, zoals vastgelegd in de wet van 17 juli 2013 Wat betreft deze tabbladen, kan het niet naleven van artikel 5, 6, 7 en 9 van bovenvernoemd Koninklijk Besluit resulteren in een administratieve geldboete van 100 euro tot 10.000 euro. In geval van herhaling kan de geldboete worden verdubbeld. Aan de aangevers wordt de verzekering gegeven, dat de verstrekte gegevens niet voor fiscale doeleinden zullen worden gebruikt E-mail : oil&biofuels@economie.fgov.be
B99: 01
B100: 02
B101: 03
B102: 04
B103: 05
B104: 06
B105: 07
B106: 08
B107: 09
B108: 10
B109: 11
B110: 12

Sheet Table 1 (hidden)
B3: =Intro!B12 -> Aangever | C3: =Intro!E12 -> Naam/Nom | G3: ALLE GEGEVENS MOETEN WORDEN
B4: =Intro!B13 -> Maand van aangifte | C4: =Intro!E13 -> 01 | D4: =Intro!F13 -> 2018 | G4: INGEGEVEN IN TON
A7: Table 1: BALANS RUWE OLIE, CONDENSATEN VAN AARDGAS EN INTERMEDIAIRE PRODUCTEN
C10: Ruwe olie | D10: Condensaten van aardgas | E10: Intermediaire producten | F10: Totaal
A12: + | B12: Beginvoorraad | F12: =SUM(C12:E12) -> 0
A13: + | B13: Import | F13: =SUM(C13:E13) -> 0
A14: - | B14: Export | F14: =SUM(C14:E14) -> 0
A15: + | B15: Productie | F15: =E15 -> 0
A16: + | B16: Ontvangsten vrij verkeer | F16: =SUM(C16:E16) -> 0
A17: - | B17: Leveringen vrij verkeer | F17: 0
A18: + | B18: Productoverdracht | F18: =SUM(C18:E18) -> 0
A19: - | B19: Eindvoorraad | F19: 0
A20: = | B20: Refinery intake (Calculated) | C20: =C12+C13-C14+C16-C17+C18-C19 -> 0 | D20: =D12+D13-D14+D16-D17+D18-D19 -> 0 | E20: =E12+E13-E14+E16-E17+E18-E19+E15 -> 0 | F20: 0
A21: - | B21: Statistical difference | C21: =C20-C22 -> 0 | D21: =D20-D22 -> 0 | E21: =E20-E22 -> 0 | F21: 0
A22: = | B22: Refinery intake (Observed) | F22: 0
B23: Refinery losses | C23: =F22-'Table 2'!AK13+'Table 2'!AK11+'Table 2'!C13-'Table 2'!C11-E15 -> 0
C24: =IF(Labels!$B$2="NL",IF(MIN(C12:C17,C19,C22)<0,"Negatief cijfer",""),IF(MIN(C12:C17,C19,C22)<0,"Chiffre négative","")) ->  | D24: =IF(Labels!$B$2="NL",IF(MIN(D12:D17,D19,D22)<0,"Negatief cijfer",""),IF(MIN(D12:D17,D19,D22)<0,"Chiffre négative","")) ->  | E24: =IF(Labels!$B$2="NL",IF(MIN(E12:E17,E19,E22)<0,"Negatief cijfer",""),IF(MIN(E12:E17,E19,E22)<0,"Chiffre négative","")) ->  | F24: =IF(Labels!$B$2="NL",IF(MIN(F12:F17,F19,F22)<0,"Negatief cijfer",""),IF(MIN(F12:F17,F19,F22)<0,"Chiffre négative","")) -> 
A25: 1 | B25: Totaal Import (F13) komt overeen met Totaal Import van deze producten in Table 3 (E111) | F25: =ABS(F13-'Table 3'!E111) -> 0 | G25: =IF(Labels!$B$2="NL",IF(OR(F13<>0, 'Table 3'!E111<>0),IF(F25<=(0.001*(F13+'Table 3'!E111)/2),"OK","Totaal Import in Table 1 ≠ Totaal Import in Table 3"),"OK"),IF(OR(F13<>0, 'Table 3'!E111<>0),IF(F25<=(0.001*(F13+'Table 3'!E111)/2),"OK","Total Importations en Table 1 ≠ Total Importations en Table 3"),"OK")) -> OK
A26: 2 | B26: Totaal Export (F14) komt overeen met Totaal Export van deze producten in Table 4 (E102) | F26: =ABS(F14-'Table 4'!E102) -> 0 | G26: =IF(Labels!$B$2="NL",IF(OR(F14<>0, 'Table 4'!E102<>0),IF(F26<=(0.001*(F14+'Table 4'!E102)/2),"OK","Totaal Export in Table 1 ≠ Totaal Export in Table 4"),"OK"),IF(OR(F14<>0, 'Table 4'!E102<>0),IF(F26<=(0.001*(F14+'Table 4'!E102)/2),"OK","Total Exportations en Table 1 ≠ Total Exportations en Table 4"),"OK")) -> OK

Sheet Table 2 (hidden)
B2: =IF('Table 1'!C3=0,"",'Table 1'!C3) -> Naam/Nom
B3: =IF('Table 1'!C4=0,"",'Table 1'!C4 & " " &'Table 1'!D4) -> 01 2018
A4: Table 2: BALANS AFGEWERKTE OLIEPRODUCTEN
C5: Additieven / Mengcomponent | G5: Oncondenseerbaar raffinagegas | H5: Totaal LPG | M5: Nafta | N5: Totaal motor benzine | R5: Vliegtuig- benzine | S5: Totaal kerosine type jet fuel | U5: Lamp-petroleum | V5: Totaal gas/diesel olie | AB5: Zware residuele stookolie | AE5: White spirit en Speciale benzine | AF5: Smeer-middelen | AG5: Bitumen | AH5: Paraffine | AI5: Petroleum coke | AJ5: Andere olieproducten | AK5: Totaal olieproducten
D6: Additief | E6: Bio-ethanol | F6: Biodiesel | I6: Butaan | J6: Propaan | K6: Gemengd (LPG) | L6: Andere LPG | O6: Benzine 98 RON 10S | P6: Benzine 95 RON 10S | Q6: Andere benzine | T6: waarvan via CEPS pijplijn | W6: Gasolie Diesel 10S | X6: Gasolie verwarming | Y6: Gasolie verwarming Extra | Z6: Gasolie Rijn en binnenvaart | AA6: Andere Gasolie | AC6: Laag zwavel (<1%) | AD6: Hoog zwavel (>=1%)
A7: + | B7: Beginvoorraad | H7: =I7+J7+K7+L7 -> 0 | N7: =O7+P7+Q7 -> 0 | V7: =W7+X7+Y7+Z7+AA7 -> 0 | AB7: =AC7+AD7 -> 0 | AK7: =H7+M7+N7+R7+S7+U7+V7+AB7+AE7+AF7+AG7+AH7+AI7+AJ7+C7 -> 0
A8: + | B8: Import | H8: 0 | N8: =O8+P8+Q8 -> 0 | V8: =W8+X8+Y8+Z8+AA8 -> 0 | AB8: =AC8+AD8 -> 0 | AK8: =H8+M8+N8+R8+S8+U8+V8+AB8+AE8+AF8+AG8+AH8+AI8+AJ8+C8 -> 0
A9: - | B9: Export | H9: 0 | N9: 0 | V9: 0 | AB9: 0 | AK9: =H9+M9+N9+R9+S9+U9+V9+AB9+AE9+AF9+AG9+AH9+AI9+AJ9+C9 -> 0
A10: - | B10: Internationale bunkers | H10: 0 | N10: 0 | V10: 0 | AB10: 0 | AK10: =H10+M10+N10+R10+S10+U10+V10+AB10+AE10+AF10+AG10+AH10+AI10+AJ10+C10 -> 0
A11: - | B11: Refinery intake | H11: 0 | N11: 0 | V11: 0 | AB11: 0 | AK11: =H11+M11+N11+R11+S11+U11+V11+AB11+AE11+AF11+AG11+AH11+AI11+AJ11+C11+G11 -> 0
A12: - | B12: Refinery Fuel | H12: 0 | N12: 0 | V12: 0 | AB12: 0 | AK12: =H12+M12+N12+R12+S12+U12+V12+AB12+AE12+AF12+AG12+AH12+AI12+AJ12+C12+G12 -> 0
A13: + | B13: Productie | H13: 0 | N13: 0 | V13: 0 | AB13: 0 | AK13: =H13+M13+N13+R13+S13+U13+V13+AB13+AE13+AF13+AG13+AH13+AI13+AJ13+C13+G13 -> 0
A14: + | B14: Ontvangsten vrij verkeer | H14: 0 | N14: 0 | V14: 0 | AB14: 0 | AK14: =H14+M14+N14+R14+S14+U14+V14+AB14+AE14+AF14+AG14+AH14+AI14+AJ14+C14 -> 0
A15: - | B15: Leveringen vrij verkeer | H15: 0 | N15: 0 | V15: 0 | AB15: 0 | AK15: =H15+M15+N15+R15+S15+U15+V15+AB15+AE15+AF15+AG15+AH15+AI15+AJ15+C15 -> 0
A16: + | B16: Productoverdracht | H16: 0 | N16: 0 | V16: 0 | AB16: 0 | AK16: =H16+M16+N16+R16+S16+U16+V16+AB16+AE16+AF16+AG16+AH16+AI16+AJ16+C16 -> 0
A17: + | B17: Overdracht additieven | C17: =F17+E17+D17 -> 0 | H17: 0 | N17: 0 | V17: 0 | AB17: 0 | AK17: =H17+M17+N17+R17+S17+U17+V17+AB17+AE17+AF17+AG17+AH17+AI17+AJ17+C17 -> 0
A18: - | B18: Eindvoorraad | H18: 0 | N18: 0 | V18: 0 | AB18: 0 | AK18: =H18+M18+N18+R18+S18+U18+V18+AB18+AE18+AF18+AG18+AH18+AI18+AJ18+C18 -> 0
A19: = | B19: Berekende inverbruikstelling | G19: =G7+G8-G9-G10-G11-G12+G13+G14-G15+G16+G17-G18 -> 0 | H19: 0 | I19: =I7+I8-I9-I10-I11-I12+I13+I14-I15+I16+I17-I18 -> 0 | J19: =J7+J8-J9-J10-J11-J12+J13+J14-J15+J16+J17-J18 -> 0 | K19: 0 | L19: 0 | M19: 0 | N19: 0 | O19: 0 | P19: =P7+P8-P9-P10-P11-P12+P13+P14-P15+P16+P17-P18 -> 0 | Q19: 0 | R19: 0 | S19: =S7+S8-S9-S10-S11-S12+S13+S14-S15+S16+S17-S18 -> 0 | U19: 0 | V19: 0 | W19: 0 | X19: 0 | Y19: =Y7+Y8-Y9-Y10-Y11-Y12+Y13+Y14-Y15+Y16+Y17-Y18 -> 0 | Z19: 0 | AA19: 0 | AB19: 0 | AC19: 0 | AD19: 0 | AE19: 0 | AF19: 0 | AG19: 0 | AH19: 0 | AI19: 0 | AJ19: 0 | AK19: =AK7+AK8-AK9-AK10-AK11-AK12+AK13+AK14-AK15+AK16+AK17-AK18-C17 -> 0
A20: - | B20: Statistical difference | G20: =G19-G21 -> 0 | H20: 0 | I20: 0 | J20: 0 | K20: 0 | L20: 0 | M20: 0 | N20: 0 | O20: 0 | P20: 0 | Q20: 0 | R20: 0 | S20: 0 | U20: 0 | V20: 0 | W20: 0 | X20: 0 | Y20: 0 | Z20: 0 | AA20: 0 | AB20: 0 | AC20: 0 | AD20: 0 | AE20: 0 | AF20: 0 | AG20: 0 | AH20: 0 | AI20: 0 | AJ20: 0 | AK20: 0
A21: = | B21: Geobserveerde inverbruikstelling | H21: =I21+J21+K21+L21 -> 0 | N21: =O21+P21+Q21 -> 0 | V21: =W21+X21+Y21+Z21+AA21 -> 0 | AB21: =AC21+AD21 -> 0 | AK21: =H21+M21+N21+R21+S21+U21+V21+AB21+AE21+AF21+AG21+AH21+AI21+AJ21+C21 -> 0
C22: =IF(Labels!$B$2="NL",IF(MIN(C7:C15,C18,C21)<0,"Negatief cijfer",""),IF(MIN(C7:C15,C18,C21)<0,"Chiffre négative","")) ->  | D22: =IF(Labels!$B$2="NL",IF(MIN(D7:D15,D18,D21)<0,"Negatief cijfer",""),IF(MIN(D7:D15,D18,D21)<0,"Chiffre négative","")) ->  | E22: =IF(Labels!$B$2="NL",IF(MIN(E7:E15,E18,E21)<0,"Negatief cijfer",""),IF(MIN(E7:E15,E18,E21)<0,"Chiffre négative","")) ->  | F22: =IF(Labels!$B$2="NL",IF(MIN(F7:F15,F18,F21)<0,"Negatief cijfer",""),IF(MIN(F7:F15,F18,F21)<0,"Chiffre négative","")) ->  | G22: =IF(Labels!$B$2="NL",IF(MIN(G7:G15,G18,G21)<0,"Negatief cijfer",""),IF(MIN(G7:G15,G18,G21)<0,"Chiffre négative","")) ->  | H22: =IF(Labels!$B$2="NL",IF(MIN(H7:H15,H18,H21)<0,"Negatief cijfer",""),IF(MIN(H7:H15,H18,H21)<0,"Chiffre négative","")) ->  | I22: =IF(Labels!$B$2="NL",IF(MIN(I7:I15,I18,I21)<0,"Negatief cijfer",""),IF(MIN(I7:I15,I18,I21)<0,"Chiffre négative","")) ->  | J22: =IF(Labels!$B$2="NL",IF(MIN(J7:J15,J18,J21)<0,"Negatief cijfer",""),IF(MIN(J7:J15,J18,J21)<0,"Chiffre négative","")) ->  | K22: =IF(Labels!$B$2="NL",IF(MIN(K7:K15,K18,K21)<0,"Negatief cijfer",""),IF(MIN(K7:K15,K18,K21)<0,"Chiffre négative","")) ->  | L22: =IF(Labels!$B$2="NL",IF(MIN(L7:L15,L18,L21)<0,"Negatief cijfer",""),IF(MIN(L7:L15,L18,L21)<0,"Chiffre négative","")) ->  | M22: =IF(Labels!$B$2="NL",IF(MIN(M7:M15,M18,M21)<0,"Negatief cijfer",""),IF(MIN(M7:M15,M18,M21)<0,"Chiffre négative","")) ->  | N22: =IF(Labels!$B$2="NL",IF(MIN(N7:N15,N18,N21)<0,"Negatief cijfer",""),IF(MIN(N7:N15,N18,N21)<0,"Chiffre négative","")) ->  | O22: =IF(Labels!$B$2="NL",IF(MIN(O7:O15,O18,O21)<0,"Negatief cijfer",""),IF(MIN(O7:O15,O18,O21)<0,"Chiffre négative","")) ->  | P22: =IF(Labels!$B$2="NL",IF(MIN(P7:P15,P18,P21)<0,"Negatief cijfer",""),IF(MIN(P7:P15,P18,P21)<0,"Chiffre négative","")) ->  | Q22: =IF(Labels!$B$2="NL",IF(MIN(Q7:Q15,Q18,Q21)<0,"Negatief cijfer",""),IF(MIN(Q7:Q15,Q18,Q21)<0,"Chiffre négative","")) ->  | R22: =IF(Labels!$B$2="NL",IF(MIN(R7:R15,R18,R21)<0,"Negatief cijfer",""),IF(MIN(R7:R15,R18,R21)<0,"Chiffre négative","")) ->  | S22: =IF(Labels!$B$2="NL",IF(MIN(S7:S15,S18,S21)<0,"Negatief cijfer",""),IF(MIN(S7:S15,S18,S21)<0,"Chiffre négative","")) ->  | T22: =IF(Labels!$B$2="NL",IF(MIN(T7:T15,T18,T21)<0,"Negatief cijfer",""),IF(MIN(T7:T15,T18,T21)<0,"Chiffre négative","")) ->  | U22: =IF(Labels!$B$2="NL",IF(MIN(U7:U15,U18,U21)<0,"Negatief cijfer",""),IF(MIN(U7:U15,U18,U21)<0,"Chiffre négative","")) ->  | V22: =IF(Labels!$B$2="NL",IF(MIN(V7:V15,V18,V21)<0,"Negatief cijfer",""),IF(MIN(V7:V15,V18,V21)<0,"Chiffre négative","")) ->  | W22: =IF(Labels!$B$2="NL",IF(MIN(W7:W15,W18,W21)<0,"Negatief cijfer",""),IF(MIN(W7:W15,W18,W21)<0,"Chiffre négative","")) ->  | X22: =IF(Labels!$B$2="NL",IF(MIN(X7:X15,X18,X21)<0,"Negatief cijfer",""),IF(MIN(X7:X15,X18,X21)<0,"Chiffre négative","")) ->  | Y22: =IF(Labels!$B$2="NL",IF(MIN(Y7:Y15,Y18,Y21)<0,"Negatief cijfer",""),IF(MIN(Y7:Y15,Y18,Y21)<0,"Chiffre négative","")) ->  | Z22: =IF(Labels!$B$2="NL",IF(MIN(Z7:Z15,Z18,Z21)<0,"Negatief cijfer",""),IF(MIN(Z7:Z15,Z18,Z21)<0,"Chiffre négative","")) ->  | AA22: =IF(Labels!$B$2="NL",IF(MIN(AA7:AA15,AA18,AA21)<0,"Negatief cijfer",""),IF(MIN(AA7:AA15,AA18,AA21)<0,"Chiffre négative","")) ->  | AB22: =IF(Labels!$B$2="NL",IF(MIN(AB7:AB15,AB18,AB21)<0,"Negatief cijfer",""),IF(MIN(AB7:AB15,AB18,AB21)<0,"Chiffre négative","")) ->  | AC22: =IF(Labels!$B$2="NL",IF(MIN(AC7:AC15,AC18,AC21)<0,"Negatief cijfer",""),IF(MIN(AC7:AC15,AC18,AC21)<0,"Chiffre négative","")) ->  | AD22: =IF(Labels!$B$2="NL",IF(MIN(AD7:AD15,AD18,AD21)<0,"Negatief cijfer",""),IF(MIN(AD7:AD15,AD18,AD21)<0,"Chiffre négative","")) ->  | AE22: =IF(Labels!$B$2="NL",IF(MIN(AE7:AE15,AE18,AE21)<0,"Negatief cijfer",""),IF(MIN(AE7:AE15,AE18,AE21)<0,"Chiffre négative","")) ->  | AF22: =IF(Labels!$B$2="NL",IF(MIN(AF7:AF15,AF18,AF21)<0,"Negatief cijfer",""),IF(MIN(AF7:AF15,AF18,AF21)<0,"Chiffre négative","")) ->  | AG22: =IF(Labels!$B$2="NL",IF(MIN(AG7:AG15,AG18,AG21)<0,"Negatief cijfer",""),IF(MIN(AG7:AG15,AG18,AG21)<0,"Chiffre négative","")) ->  | AH22: =IF(Labels!$B$2="NL",IF(MIN(AH7:AH15,AH18,AH21)<0,"Negatief cijfer",""),IF(MIN(AH7:AH15,AH18,AH21)<0,"Chiffre négative","")) ->  | AI22: =IF(Labels!$B$2="NL",IF(MIN(AI7:AI15,AI18,AI21)<0,"Negatief cijfer",""),IF(MIN(AI7:AI15,AI18,AI21)<0,"Chiffre négative","")) ->  | AJ22: =IF(Labels!$B$2="NL",IF(MIN(AJ7:AJ15,AJ18,AJ21)<0,"Negatief cijfer",""),IF(MIN(AJ7:AJ15,AJ18,AJ21)<0,"Chiffre négative","")) ->  | AK22: =IF(Labels!$B$2="NL",IF(MIN(AK7:AK15,AK18,AK21)<0,"Negatief cijfer",""),IF(MIN(AK7:AK15,AK18,AK21)<0,"Chiffre négative","")) -> 
M23: Inverbruikstelling : | O23: =O21 -> 0 | P23: =P21 -> 0 | S23: =IF(Labels!$B$2="NL",IF(OR(T8>S8,T9>S9,T14>S14,T15>S15),"Transport via CEPS moet kleiner zijn dan totaal transport",""),IF(OR(T8>S8,T9>S9,T14>S14,T15>S15),"Transport par CEPS doit être plus petit que transport total","")) ->  | U23: Inverbruikstelling : | W23: =W21 -> 0
M24: waarvan bio-ethanol : | U24: waarvan biodiesel :
A25: 1 | B25: Totaal Import (AK8) komt overeen met Totaal Import van deze producten in Table 3 (AM111) | E25: =ABS(AK8-'Table 3'!AM111) -> 0 | F25: =IF(Labels!$B$2="NL",IF(OR(AK8<>0, 'Table 3'!AM111<>0),IF(E25<=(0.001*(AK8+'Table 3'!AM111)/2),"OK","Totaal Import in Table 2 ≠ Totaal Import in Table 3"),"OK"),IF(OR(AK8<>0, 'Table 3'!AM111<>0),IF(E25<=(0.001*(AK8+'Table 3'!AM111)/2),"OK","Total Importations en Table 2 ≠ Total Importations en Table 3"),"OK")) -> OK
A26: 2 | B26: Totaal Export (AK9) komt overeen met Totaal Export van deze producten in Table 4 (AM102) | E26: =ABS(AK9-'Table 4'!AM102) -> 0 | F26: =IF(Labels!$B$2="NL",IF(OR(AK9<>0, 'Table 4'!AM102<>0),IF(E26<=(0.001*(AK9+'Table 4'!AM102)/2),"OK","Totaal Export in Table 2 ≠ Totaal Export in Table 4"),"OK"),IF(OR(AK9<>0, 'Table 4'!AM102<>0),IF(E26<=(0.001*(AK9+'Table 4'!AM102)/2),"OK","Total Exportations en Table 2 ≠ Total Exportations en Table 4"),"OK")) -> OK
A27: 3 | B27: Totaal van Productoverdracht is gelijk aan 0 | E27: ='Table 1'!F18+'Table 2'!AK16 -> 0 | F27: =IF(Labels!$B$2="NL",IF(ABS(E27)<=0.001*(MAX(C16:AK16)-MIN(C16:AK16))/2,"OK","Productoverdracht ≠ 0"),IF(ABS(E27)<=0.001*(MAX(C16:AK16)-MIN(C16:AK16))/2,"OK","Transfert de produits ≠ 0")) -> OK
A28: 4 | B28: Totaal van Overdracht Additieven is gelijk aan 0 | E28: =AK17 -> 0 | F28: =IF(Labels!$B$2="NL",IF(ABS(E28)<=0.001*ABS(C17),"OK","Overdracht van additieven ≠ 0"),IF(ABS(E28)<=0.001*ABS(C17),"OK","Transfert d'additifs ≠ 0")) -> OK

Sheet Table 3 (hidden)
A2: =IF('Table 1'!C3=0,"",'Table 1'!C3) -> Naam/Nom
A3: =IF('Table 1'!C4=0,"",'Table 1'!C4 & " " &'Table 1'!D4) -> 01 2018
A4: Table 3: IMPORT PER LAND
B5: Ruwe olie | C5: Condensaten van aardgas | D5: Intermediaire producten | E5: Totaal Ruwe Producten | F5: Additieven / Mengcomponent | J5: Totaal LPG | O5: Nafta | P5: Totaal motor benzine | T5: Vliegtuig- benzine | U5: Totaal kerosine type jet fuel | W5: Lamp-petroleum | X5: Totaal gas/diesel olie | AD5: Zware residuele stookolie | AG5: White spirit en Speciale benzine | AH5: Smeer-middelen | AI5: Bitumen | AJ5: Paraffine | AK5: Petroleum coke | AL5: Andere olieproducten | AM5: Totaal Producten | AN5: Totaal Olie
G6: Klassiek | H6: Bio-ethanol | I6: Biodiesel | K6: Butaan | L6: Propaan | M6: Gemengd (LPG) | N6: Andere LPG | Q6: Benzine 98 RON 10S | R6: Benzine 95 RON 10S | S6: Andere benzine | V6: waarvan via CEPS pijplijn | Y6: Gasolie Diesel 10S | Z6: Gasolie verwarming | AA6: Gasolie verwarming Extra | AB6: Gasolie Rijn en binnenvaart | AC6: Andere Gasolie | AE6: Laag zwavel (<1%) | AF6: Hoog zwavel (>=1%)
A7: Algeria | E7: =SUM(B7:D7) -> 0 | J7: =K7+L7+M7+N7 -> 0 | P7: =Q7+S7+R7 -> 0 | X7: =Y7+Z7+AA7+AB7+AC7 -> 0 | AD7: =AE7+AF7 -> 0 | AM7: =AL7+AK7+AJ7+AI7+AH7+AG7+AD7+X7+W7+U7+T7+P7+O7+J7+F7 -> 0 | AN7: =AM7+E7 -> 0
A8: Angola | E8: =SUM(B8:D8) -> 0 | J8: =K8+L8+M8+N8 -> 0 | P8: =Q8+S8+R8 -> 0 | X8: =Y8+Z8+AA8+AB8+AC8 -> 0 | AD8: =AE8+AF8 -> 0 | AM8: 0 | AN8: 0
A9: Argentina | E9: 0 | J9: 0 | P9: 0 | X9: 0 | AD9: 0 | AM9: 0 | AN9: 0
A10: Armenia | E10: 0 | J10: 0 | P10: 0 | X10: 0 | AD10: 0 | AM10: 0 | AN10: 0
A11: Australia | E11: 0 | J11: 0 | P11: 0 | X11: 0 | AD11: 0 | AM11: 0 | AN11: 0
A12: Austria | E12: 0 | J12: 0 | P12: 0 | X12: 0 | AD12: 0 | AM12: 0 | AN12: 0
A13: Azerbaijan | E13: 0 | J13: 0 | P13: 0 | X13: 0 | AD13: 0 | AM13: 0 | AN13: 0
A14: Bahamas | E14: 0 | J14: 0 | P14: 0 | X14: 0 | AD14: 0 | AM14: 0 | AN14: 0
A15: Bahrain | E15: 0 | J15: 0 | P15: 0 | X15: 0 | AD15: 0 | AM15: 0 | AN15: 0
A16: Belarus | E16: 0 | J16: 0 | P16: 0 | X16: 0 | AD16: 0 | AM16: 0 | AN16: 0
A17: Belgium | E17: 0 | J17: 0 | P17: 0 | X17: 0 | AD17: 0 | AM17: 0 | AN17: 0
A18: Bosnia and Herzegovina | E18: 0 | J18: 0 | P18: 0 | X18: 0 | AD18: 0 | AM18: 0 | AN18: 0
A19: Brazil | E19: 0 | J19: 0 | P19: 0 | X19: 0 | AD19: 0 | AM19: 0 | AN19: 0
A20: Brunei Darussalam | E20: 0 | J20: 0 | P20: 0 | X20: 0 | AD20: 0 | AM20: 0 | AN20: 0
A21: Bulgaria | E21: 0 | J21: 0 | P21: 0 | X21: 0 | AD21: 0 | AM21: 0 | AN21: 0
A22: Cameroon | E22: 0 | J22: 0 | P22: 0 | X22: 0 | AD22: 0 | AM22: 0 | AN22: 0
A23: Canada | E23: 0 | J23: 0 | P23: 0 | X23: 0 | AD23: 0 | AM23: 0 | AN23: 0
A24: Chile | E24: 0 | J24: 0 | P24: 0 | X24: 0 | AD24: 0 | AM24: 0 | AN24: 0
A25: China, People's Republic | E25: 0 | J25: 0 | P25: 0 | X25: 0 | AD25: 0 | AM25: 0 | AN25: 0
A26: Colombia | E26: 0 | J26: 0 | P26: 0 | X26: 0 | AD26: 0 | AM26: 0 | AN26: 0
A27: Congo | E27: 0 | J27: 0 | P27: 0 | X27: 0 | AD27: 0 | AM27: 0 | AN27: 0
A28: Congo, Democratic Republic | E28: 0 | J28: 0 | P28: 0 | X28: 0 | AD28: 0 | AM28: 0 | AN28: 0
A29: Croatia | E29: 0 | J29: 0 | P29: 0 | X29: 0 | AD29: 0 | AM29: 0 | AN29: 0
A30: Cyprus | E30: 0 | J30: 0 | P30: 0 | X30: 0 | AD30: 0 | AM30: 0 | AN30: 0
A31: Czech Republic | E31: 0 | J31: 0 | P31: 0 | X31: 0 | AD31: 0 | AM31: 0 | AN31: 0
A32: Denmark | E32: 0 | J32: 0 | P32: 0 | X32: 0 | AD32: 0 | AM32: 0 | AN32: 0
A33: Ecuador | E33: 0 | J33: 0 | P33: 0 | X33: 0 | AD33: 0 | AM33: 0 | AN33: 0
A34: Egypt | E34: 0 | J34: 0 | P34: 0 | X34: 0 | AD34: 0 | AM34: 0 | AN34: 0
A35: Equatorial Guinea | E35: 0 | J35: 0 | P35: 0 | X35: 0 | AD35: 0 | AM35: 0 | AN35: 0
A36: Estonia | E36: 0 | J36: 0 | P36: 0 | X36: 0 | AD36: 0 | AM36: 0 | AN36: 0
A37: Finland | E37: 0 | J37: 0 | P37: 0 | X37: 0 | AD37: 0 | AM37: 0 | AN37: 0
A38: France | E38: 0 | J38: 0 | P38: 0 | X38: 0 | AD38: 0 | AM38: 0 | AN38: 0
A39: Gabon | E39: 0 | J39: 0 | P39: 0 | X39: 0 | AD39: 0 | AM39: 0 | AN39: 0
A40: Georgia | E40: 0 | J40: 0 | P40: 0 | X40: 0 | AD40: 0 | AM40: 0 | AN40: 0
A41: Germany | E41: 0 | J41: 0 | P41: 0 | X41: 0 | AD41: 0 | AM41: 0 | AN41: 0
A42: Greece | E42: 0 | J42: 0 | P42: 0 | X42: 0 | AD42: 0 | AM42: 0 | AN42: 0
A43: Hong Kong (China) | E43: 0 | J43: 0 | P43: 0 | X43: 0 | AD43: 0 | AM43: 0 | AN43: 0
A44: Hungary | E44: 0 | J44: 0 | P44: 0 | X44: 0 | AD44: 0 | AM44: 0 | AN44: 0
A45: Iceland | E45: 0 | J45: 0 | P45: 0 | X45: 0 | AD45: 0 | AM45: 0 | AN45: 0
A46: India | E46: 0 | J46: 0 | P46: 0 | X46: 0 | AD46: 0 | AM46: 0 | AN46: 0
A47: Indonesia | E47: 0 | J47: 0 | P47: 0 | X47: 0 | AD47: 0 | AM47: 0 | AN47: 0
A48: Iran, Islamic Republic | E48: 0 | J48: 0 | P48: 0 | X48: 0 | AD48: 0 | AM48: 0 | AN48: 0
A49: Iraq | E49: 0 | J49: 0 | P49: 0 | X49: 0 | AD49: 0 | AM49: 0 | AN49: 0
A50: Ireland | E50: 0 | J50: 0 | P50: 0 | X50: 0 | AD50: 0 | AM50: 0 | AN50: 0
A51: Israel | E51: 0 | J51: 0 | P51: 0 | X51: 0 | AD51: 0 | AM51: 0 | AN51: 0
A52: Italy | E52: 0 | J52: 0 | P52: 0 | X52: 0 | AD52: 0 | AM52: 0 | AN52: 0
A53: Japan | E53: 0 | J53: 0 | P53: 0 | X53: 0 | AD53: 0 | AM53: 0 | AN53: 0
A54: Kazakhstan | E54: 0 | J54: 0 | P54: 0 | X54: 0 | AD54: 0 | AM54: 0 | AN54: 0
A55: Korea | E55: 0 | J55: 0 | P55: 0 | X55: 0 | AD55: 0 | AM55: 0 | AN55: 0
A56: Kuwait | E56: 0 | J56: 0 | P56: 0 | X56: 0 | AD56: 0 | AM56: 0 | AN56: 0
A57: Kyrgyzstan | E57: 0 | J57: 0 | P57: 0 | X57: 0 | AD57: 0 | AM57: 0 | AN57: 0
A58: Latvia | E58: 0 | J58: 0 | P58: 0 | X58: 0 | AD58: 0 | AM58: 0 | AN58: 0
A59: Libya | E59: 0 | J59: 0 | P59: 0 | X59: 0 | AD59: 0 | AM59: 0 | AN59: 0
A60: Lithuania | E60: 0 | J60: 0 | P60: 0 | X60: 0 | AD60: 0 | AM60: 0 | AN60: 0
A61: Luxembourg | E61: 0 | J61: 0 | P61: 0 | X61: 0 | AD61: 0 | AM61: 0 | AN61: 0
A62: Macedonia, Former Yugoslav Republic | E62: 0 | J62: 0 | P62: 0 | X62: 0 | AD62: 0 | AM62: 0 | AN62: 0
A63: Malaysia | E63: 0 | J63: 0 | P63: 0 | X63: 0 | AD63: 0 | AM63: 0 | AN63: 0
A64: Malta | E64: 0 | J64: 0 | P64: 0 | X64: 0 | AD64: 0 | AM64: 0 | AN64: 0
A65: Mexico | E65: 0 | J65: 0 | P65: 0 | X65: 0 | AD65: 0 | AM65: 0 | AN65: 0
A66: Moldova, Republic | E66: 0 | J66: 0 | P66: 0 | X66: 0 | AD66: 0 | AM66: 0 | AN66: 0
A67: Montenegro | E67: 0 | J67: 0 | P67: 0 | X67: 0 | AD67: 0 | AM67: 0 | AN67: 0
A68: Netherlands | E68: 0 | J68: 0 | P68: 0 | X68: 0 | AD68: 0 | AM68: 0 | AN68: 0
A69: Netherlands Antilles | E69: 0 | J69: 0 | P69: 0 | X69: 0 | AD69: 0 | AM69: 0 | AN69: 0
A70: New Zealand | E70: 0 | J70: 0 | P70: 0 | X70: 0 | AD70: 0 | AM70: 0 | AN70: 0
A71: Nigeria | E71: 0 | J71: 0 | P71: 0 | X71: 0 | AD71: 0 | AM71: =AL71+AK71+AJ71+AI71+AH71+AG71+AD71+X71+W71+U71+T71+P71+O71+J71+F71 -> 0 | AN71: =AM71+E71 -> 0
A72: Norway | E72: =SUM(B72:D72) -> 0 | J72: =K72+L72+M72+N72 -> 0 | P72: =Q72+S72+R72 -> 0 | X72: =Y72+Z72+AA72+AB72+AC72 -> 0 | AD72: =AE72+AF72 -> 0 | AM72: 0 | AN72: 0
A73: Oman | E73: 0 | J73: 0 | P73: 0 | X73: 0 | AD73: 0 | AM73: 0 | AN73: 0
A74: Other Africa | E74: 0 | J74: 0 | P74: 0 | X74: 0 | AD74: 0 | AM74: 0 | AN74: 0
A75: Other Asia and Pacific | E75: 0 | J75: 0 | P75: 0 | X75: 0 | AD75: 0 | AM75: 0 | AN75: 0
A76: Other Europe | E76: 0 | J76: 0 | P76: 0 | X76: 0 | AD76: 0 | AM76: 0 | AN76: 0
A77: Other Former Soviet Union | E77: 0 | J77: 0 | P77: 0 | X77: 0 | AD77: 0 | AM77: 0 | AN77: 0
A78: Other Near and Middle East | E78: 0 | J78: 0 | P78: 0 | X78: 0 | AD78: 0 | AM78: 0 | AN78: 0
A79: Other non-OECD Americas | E79: 0 | J79: 0 | P79: 0 | X79: 0 | AD79: 0 | AM79: 0 | AN79: 0
A80: Papua New Guinea | E80: 0 | J80: 0 | P80: 0 | X80: 0 | AD80: 0 | AM80: 0 | AN80: 0
A81: Peru | E81: 0 | J81: 0 | P81: 0 | X81: 0 | AD81: 0 | AM81: 0 | AN81: 0
A82: Poland | E82: 0 | J82: 0 | P82: 0 | X82: 0 | AD82: 0 | AM82: 0 | AN82: 0
A83: Portugal | E83: 0 | J83: 0 | P83: 0 | X83: 0 | AD83: 0 | AM83: 0 | AN83: 0
A84: Qatar | E84: 0 | J84: 0 | P84: 0 | X84: 0 | AD84: 0 | AM84: 0 | AN84: 0
A85: Romania | E85: 0 | J85: 0 | P85: 0 | X85: 0 | AD85: 0 | AM85: 0 | AN85: 0
A86: Russian Federation | E86: 0 | J86: 0 | P86: 0 | X86: 0 | AD86: 0 | AM86: 0 | AN86: 0
A87: Saudi Arabia | E87: 0 | J87: 0 | P87: 0 | X87: 0 | AD87: 0 | AM87: 0 | AN87: 0
A88: Serbia | E88: 0 | J88: 0 | P88: 0 | X88: 0 | AD88: 0 | AM88: 0 | AN88: 0
A89: Singapore | E89: 0 | J89: 0 | P89: 0 | X89: 0 | AD89: 0 | AM89: 0 | AN89: 0
A90: Slovak Republic | E90: 0 | J90: 0 | P90: 0 | X90: 0 | AD90: 0 | AM90: 0 | AN90: 0
A91: Slovenia | E91: 0 | J91: 0 | P91: 0 | X91: 0 | AD91: 0 | AM91: 0 | AN91: 0
A92: Spain | E92: 0 | J92: 0 | P92: 0 | X92: 0 | AD92: 0 | AM92: 0 | AN92: 0
A93: Sweden | E93: 0 | J93: 0 | P93: 0 | X93: 0 | AD93: 0 | AM93: 0 | AN93: 0
A94: Switzerland | E94: 0 | J94: 0 | P94: 0 | X94: 0 | AD94: 0 | AM94: 0 | AN94: 0
A95: Syrian Arab Republic | E95: 0 | J95: 0 | P95: 0 | X95: 0 | AD95: 0 | AM95: 0 | AN95: 0
A96: Tajikistan | E96: 0 | J96: 0 | P96: 0 | X96: 0 | AD96: 0 | AM96: 0 | AN96: 0
A97: Thailand | E97: 0 | J97: 0 | P97: 0 | X97: 0 | AD97: 0 | AM97: 0 | AN97: 0
A98: Trinidad and Tobago | E98: 0 | J98: 0 | P98: 0 | X98: 0 | AD98: 0 | AM98: 0 | AN98: 0
A99: Tunisia | E99: 0 | J99: 0 | P99: 0 | X99: 0 | AD99: 0 | AM99: 0 | AN99: 0
A100: Turkey | E100: 0 | J100: 0 | P100: 0 | X100: 0 | AD100: 0 | AM100: 0 | AN100: 0
A101: Turkmenistan | E101: 0 | J101: 0 | P101: 0 | X101: 0 | AD101: 0 | AM101: 0 | AN101: 0
A102: Ukraine | E102: 0 | J102: 0 | P102: 0 | X102: 0 | AD102: 0 | AM102: 0 | AN102: 0
A103: United Arab Emirates | E103: 0 | J103: 0 | P103: 0 | X103: 0 | AD103: 0 | AM103: 0 | AN103: 0
A104: United Kingdom | E104: 0 | J104: 0 | P104: 0 | X104: 0 | AD104: 0 | AM104: 0 | AN104: 0
A105: United States | E105: 0 | J105: 0 | P105: 0 | X105: 0 | AD105: 0 | AM105: 0 | AN105: 0
A106: Uzbekistan | E106: 0 | J106: 0 | P106: 0 | X106: 0 | AD106: 0 | AM106: 0 | AN106: 0
A107: Venezuela | E107: 0 | J107: 0 | P107: 0 | X107: 0 | AD107: 0 | AM107: 0 | AN107: 0
A108: Vietnam | E108: 0 | J108: 0 | P108: 0 | X108: 0 | AD108: 0 | AM108: 0 | AN108: 0
A109: Yemen | E109: 0 | J109: 0 | P109: 0 | X109: 0 | AD109: 0 | AM109: 0 | AN109: 0
A110: Non-specified/Other | E110: 0 | J110: 0 | P110: 0 | X110: 0 | AD110: 0 | AM110: 0 | AN110: 0
A111: Totaal Import | B111: =SUM(B7:B110) -> 0 | C111: 0 | D111: 0 | E111: =SUM(E7:E110) -> 0 | F111: 0 | G111: 0 | H111: 0 | I111: 0 | J111: 0 | K111: 0 | L111: 0 | M111: 0 | N111: 0 | O111: 0 | P111: 0 | Q111: 0 | R111: 0 | S111: 0 | T111: 0 | U111: 0 | V111: 0 | W111: 0 | X111: 0 | Y111: 0 | Z111: 0 | AA111: 0 | AB111: 0 | AC111: 0 | AD111: 0 | AE111: 0 | AF111: 0 | AG111: 0 | AH111: =SUM(AH7:AH110) -> 0 | AI111: =SUM(AI7:AI110) -> 0 | AJ111: =SUM(AJ7:AJ110) -> 0 | AK111: =SUM(AK7:AK110) -> 0 | AL111: 0 | AM111: =SUM(AM7:AM110) -> 0 | AN111: 0
B112: =IF(MIN(B7:B111)<0,"Negatief cijfer","") ->  | C112: =IF(MIN(C7:C111)<0,"Negatief cijfer","") -> 
V113: =IF(V111>U111,"Transport via CEPS (V111) moet kleiner zijn dan totaal transport (U111)","") -> 
A114: 1. Totaal Import van Totaal Ruwe Producten (E111) moet gelijk zijn aan Totaal Import in Table 1 (F13) | H114: ='Table 1'!G25 -> OK
A115: en Totaal Import van Totaal Producten (AM111) moet gelijk zijn aan Totaal Import in Table 2 (AK8) | H115: ='Table 2'!F25 -> OK

Sheet Table 4 (hidden)
A2: =IF('Table 1'!C3=0,"",'Table 1'!C3) -> Naam/Nom
A3: =IF('Table 1'!C4=0,"",'Table 1'!C4 & " " &'Table 1'!D4) -> 01 2018
A4: Table 4: EXPORT PER LAND
B5: Ruwe olie | C5: Condensaten van aardgas | D5: Intermediaire producten | E5: Totaal Ruwe Producten | F5: Additieven / Mengcomponent | J5: Totaal LPG | O5: Nafta | P5: Totaal motor benzine | T5: Vliegtuig- benzine | U5: Totaal kerosine type jet fuel | W5: Lamp-petroleum | X5: Totaal gas/diesel olie | AD5: Zware residuele stookolie | AG5: White spirit en Speciale benzine | AH5: Smeer-middelen | AI5: Bitumen | AJ5: Paraffine | AK5: Petroleum coke | AL5: Andere olieproducten | AM5: Totaal Producten | AN5: Totaal Olie
G6: Klassiek | H6: Bio-ethanol | I6: Biodiesel | K6: Butaan | L6: Propaan | M6: Gemengd (LPG) | N6: Andere LPG | Q6: Benzine 98 RON 10S | R6: Benzine 95 RON 10S | S6: Andere benzine | V6: waarvan via CEPS pijplijn | Y6: Gasolie Diesel 10S | Z6: Gasolie verwarming | AA6: Gasolie verwarming Extra | AB6: Gasolie Rijn en binnenvaart | AC6: Andere Gasolie | AE6: Laag zwavel (<1%) | AF6: Hoog zwavel (>=1%)
A7: Algeria | E7: =SUM(B7:D7) -> 0 | J7: =K7+L7+M7+N7 -> 0 | P7: =Q7+S7+R7 -> 0 | X7: =Y7+Z7+AA7+AB7+AC7 -> 0 | AD7: =AE7+AF7 -> 0 | AM7: =AL7+AK7+AJ7+AI7+AH7+AG7+AD7+X7+W7+U7+T7+P7+O7+J7+F7 -> 0 | AN7: =AM7+E7 -> 0
A8: Argentina | E8: =SUM(B8:D8) -> 0 | J8: =K8+L8+M8+N8 -> 0 | P8: =Q8+S8+R8 -> 0 | X8: =Y8+Z8+AA8+AB8+AC8 -> 0 | AD8: =AE8+AF8 -> 0 | AM8: 0 | AN8: 0
A9: Armenia | E9: 0 | J9: 0 | P9: 0 | X9: 0 | AD9: 0 | AM9: 0 | AN9: 0
A10: Australia | E10: 0 | J10: 0 | P10: 0 | X10: 0 | AD10: 0 | AM10: 0 | AN10: 0
A11: Austria | E11: 0 | J11: 0 | P11: 0 | X11: 0 | AD11: 0 | AM11: 0 | AN11: 0
A12: Azerbaijan | E12: 0 | J12: 0 | P12: 0 | X12: 0 | AD12: 0 | AM12: 0 | AN12: 0
A13: Belarus | E13: 0 | J13: 0 | P13: 0 | X13: 0 | AD13: 0 | AM13: 0 | AN13: 0
A14: Belgium | E14: 0 | J14: 0 | P14: 0 | X14: 0 | AD14: 0 | AM14: 0 | AN14: 0
A15: Bosnia and Herzegovina | E15: 0 | J15: 0 | P15: 0 | X15: 0 | AD15: 0 | AM15: 0 | AN15: 0
A16: Brazil | E16: 0 | J16: 0 | P16: 0 | X16: 0 | AD16: 0 | AM16: 0 | AN16: 0
A17: Bulgaria | E17: 0 | J17: 0 | P17: 0 | X17: 0 | AD17: 0 | AM17: 0 | AN17: 0
A18: Canada | E18: 0 | J18: 0 | P18: 0 | X18: 0 | AD18: 0 | AM18: 0 | AN18: 0
A19: Chile | E19: 0 | J19: 0 | P19: 0 | X19: 0 | AD19: 0 | AM19: 0 | AN19: 0
A20: China, People's Republic | E20: 0 | J20: 0 | P20: 0 | X20: 0 | AD20: 0 | AM20: 0 | AN20: 0
A21: Chinese Taipei | E21: 0 | J21: 0 | P21: 0 | X21: 0 | AD21: 0 | AM21: 0 | AN21: 0
A22: Colombia | E22: 0 | J22: 0 | P22: 0 | X22: 0 | AD22: 0 | AM22: 0 | AN22: 0
A23: Croatia | E23: 0 | J23: 0 | P23: 0 | X23: 0 | AD23: 0 | AM23: 0 | AN23: 0
A24: Cyprus | E24: 0 | J24: 0 | P24: 0 | X24: 0 | AD24: 0 | AM24: 0 | AN24: 0
A25: Czech Republic | E25: 0 | J25: 0 | P25: 0 | X25: 0 | AD25: 0 | AM25: 0 | AN25: 0
A26: Denmark | E26: 0 | J26: 0 | P26: 0 | X26: 0 | AD26: 0 | AM26: 0 | AN26: 0
A27: Egypt | E27: 0 | J27: 0 | P27: 0 | X27: 0 | AD27: 0 | AM27: 0 | AN27: 0
A28: Estonia | E28: 0 | J28: 0 | P28: 0 | X28: 0 | AD28: 0 | AM28: 0 | AN28: 0
A29: Finland | E29: 0 | J29: 0 | P29: 0 | X29: 0 | AD29: 0 | AM29: 0 | AN29: 0
A30: France | E30: 0 | J30: 0 | P30: 0 | X30: 0 | AD30: 0 | AM30: 0 | AN30: 0
A31: Georgia | E31: 0 | J31: 0 | P31: 0 | X31: 0 | AD31: 0 | AM31: 0 | AN31: 0
A32: Germany | E32: 0 | J32: 0 | P32: 0 | X32: 0 | AD32: 0 | AM32: 0 | AN32: 0
A33: Greece | E33: 0 | J33: 0 | P33: 0 | X33: 0 | AD33: 0 | AM33: 0 | AN33: 0
A34: Hong Kong (China) | E34: 0 | J34: 0 | P34: 0 | X34: 0 | AD34: 0 | AM34: 0 | AN34: 0
A35: Hungary | E35: 0 | J35: 0 | P35: 0 | X35: 0 | AD35: 0 | AM35: 0 | AN35: 0
A36: Iceland | E36: 0 | J36: 0 | P36: 0 | X36: 0 | AD36: 0 | AM36: 0 | AN36: 0
A37: India | E37: 0 | J37: 0 | P37: 0 | X37: 0 | AD37: 0 | AM37: 0 | AN37: 0
A38: Indonesia | E38: 0 | J38: 0 | P38: 0 | X38: 0 | AD38: 0 | AM38: 0 | AN38: 0
A39: Iran, Islamic Republic | E39: 0 | J39: 0 | P39: 0 | X39: 0 | AD39: 0 | AM39: 0 | AN39: 0
A40: Iraq | E40: 0 | J40: 0 | P40: 0 | X40: 0 | AD40: 0 | AM40: 0 | AN40: 0
A41: Ireland | E41: 0 | J41: 0 | P41: 0 | X41: 0 | AD41: 0 | AM41: 0 | AN41: 0
A42: Israel | E42: 0 | J42: 0 | P42: 0 | X42: 0 | AD42: 0 | AM42: 0 | AN42: 0
A43: Italy | E43: 0 | J43: 0 | P43: 0 | X43: 0 | AD43: 0 | AM43: 0 | AN43: 0
A44: Japan | E44: 0 | J44: 0 | P44: 0 | X44: 0 | AD44: 0 | AM44: 0 | AN44: 0
A45: Kazakhstan | E45: 0 | J45: 0 | P45: 0 | X45: 0 | AD45: 0 | AM45: 0 | AN45: 0
A46: Korea | E46: 0 | J46: 0 | P46: 0 | X46: 0 | AD46: 0 | AM46: 0 | AN46: 0
A47: Kuwait | E47: 0 | J47: 0 | P47: 0 | X47: 0 | AD47: 0 | AM47: 0 | AN47: 0
A48: Kyrgyzstan | E48: 0 | J48: 0 | P48: 0 | X48: 0 | AD48: 0 | AM48: 0 | AN48: 0
A49: Latvia | E49: 0 | J49: 0 | P49: 0 | X49: 0 | AD49: 0 | AM49: 0 | AN49: 0
A50: Lebanon | E50: 0 | J50: 0 | P50: 0 | X50: 0 | AD50: 0 | AM50: 0 | AN50: 0
A51: Libya | E51: 0 | J51: 0 | P51: 0 | X51: 0 | AD51: 0 | AM51: 0 | AN51: 0
A52: Lithuania | E52: 0 | J52: 0 | P52: 0 | X52: 0 | AD52: 0 | AM52: 0 | AN52: 0
A53: Luxembourg | E53: 0 | J53: 0 | P53: 0 | X53: 0 | AD53: 0 | AM53: 0 | AN53: 0
A54: Macedonia, Former Yugoslav Republic | E54: 0 | J54: 0 | P54: 0 | X54: 0 | AD54: 0 | AM54: 0 | AN54: 0
A55: Malaysia | E55: 0 | J55: 0 | P55: 0 | X55: 0 | AD55: 0 | AM55: 0 | AN55: 0
A56: Malta | E56: 0 | J56: 0 | P56: 0 | X56: 0 | AD56: 0 | AM56: 0 | AN56: 0
A57: Mexico | E57: 0 | J57: 0 | P57: 0 | X57: 0 | AD57: 0 | AM57: 0 | AN57: 0
A58: Moldova, Republic | E58: 0 | J58: 0 | P58: 0 | X58: 0 | AD58: 0 | AM58: 0 | AN58: 0
A59: Montenegro | E59: 0 | J59: 0 | P59: 0 | X59: 0 | AD59: 0 | AM59: 0 | AN59: 0
A60: Morocco | E60: 0 | J60: 0 | P60: 0 | X60: 0 | AD60: 0 | AM60: 0 | AN60: 0
A61: Netherlands | E61: 0 | J61: 0 | P61: 0 | X61: 0 | AD61: 0 | AM61: 0 | AN61: 0
A62: Netherlands Antilles | E62: 0 | J62: 0 | P62: 0 | X62: 0 | AD62: 0 | AM62: 0 | AN62: 0
A63: New Zealand | E63: 0 | J63: 0 | P63: 0 | X63: 0 | AD63: 0 | AM63: 0 | AN63: 0
A64: Nigeria | E64: 0 | J64: 0 | P64: 0 | X64: 0 | AD64: 0 | AM64: 0 | AN64: 0
A65: Norway | E65: 0 | J65: 0 | P65: 0 | X65: 0 | AD65: 0 | AM65: 0 | AN65: 0
A66: Other Africa | E66: 0 | J66: 0 | P66: 0 | X66: 0 | AD66: 0 | AM66: 0 | AN66: 0
A67: Other Asia and Pacific | E67: 0 | J67: 0 | P67: 0 | X67: 0 | AD67: 0 | AM67: 0 | AN67: 0
A68: Other Europe | E68: 0 | J68: 0 | P68: 0 | X68: 0 | AD68: 0 | AM68: 0 | AN68: 0
A69: Other Former Soviet Union | E69: 0 | J69: 0 | P69: 0 | X69: 0 | AD69: 0 | AM69: 0 | AN69: 0
A70: Other Near and Middle East | E70: 0 | J70: 0 | P70: 0 | X70: 0 | AD70: 0 | AM70: 0 | AN70: 0
A71: Other non-OECD Americas | E71: 0 | J71: 0 | P71: 0 | X71: 0 | AD71: 0 | AM71: =AL71+AK71+AJ71+AI71+AH71+AG71+AD71+X71+W71+U71+T71+P71+O71+J71+F71 -> 0 | AN71: =AM71+E71 -> 0
A72: Pakistan | E72: =SUM(B72:D72) -> 0 | J72: =K72+L72+M72+N72 -> 0 | P72: =Q72+S72+R72 -> 0 | X72: =Y72+Z72+AA72+AB72+AC72 -> 0 | AD72: =AE72+AF72 -> 0 | AM72: 0 | AN72: 0
A73: Philippines | E73: 0 | J73: 0 | P73: 0 | X73: 0 | AD73: 0 | AM73: 0 | AN73: 0
A74: Poland | E74: 0 | J74: 0 | P74: 0 | X74: 0 | AD74: 0 | AM74: 0 | AN74: 0
A75: Portugal | E75: 0 | J75: 0 | P75: 0 | X75: 0 | AD75: 0 | AM75: 0 | AN75: 0
A76: Qatar | E76: 0 | J76: 0 | P76: 0 | X76: 0 | AD76: 0 | AM76: 0 | AN76: 0
A77: Romania | E77: 0 | J77: 0 | P77: 0 | X77: 0 | AD77: 0 | AM77: 0 | AN77: 0
A78: Russian Federation | E78: 0 | J78: 0 | P78: 0 | X78: 0 | AD78: 0 | AM78: 0 | AN78: 0
A79: Saudi Arabia | E79: 0 | J79: 0 | P79: 0 | X79: 0 | AD79: 0 | AM79: 0 | AN79: 0
A80: Serbia | E80: 0 | J80: 0 | P80: 0 | X80: 0 | AD80: 0 | AM80: 0 | AN80: 0
A81: Singapore | E81: 0 | J81: 0 | P81: 0 | X81: 0 | AD81: 0 | AM81: 0 | AN81: 0
A82: Slovak Republic | E82: 0 | J82: 0 | P82: 0 | X82: 0 | AD82: 0 | AM82: 0 | AN82: 0
A83: Slovenia | E83: 0 | J83: 0 | P83: 0 | X83: 0 | AD83: 0 | AM83: 0 | AN83: 0
A84: South Africa | E84: 0 | J84: 0 | P84: 0 | X84: 0 | AD84: 0 | AM84: 0 | AN84: 0
A85: Spain | E85: 0 | J85: 0 | P85: 0 | X85: 0 | AD85: 0 | AM85: 0 | AN85: 0
A86: Sweden | E86: 0 | J86: 0 | P86: 0 | X86: 0 | AD86: 0 | AM86: 0 | AN86: 0
A87: Switzerland | E87: 0 | J87: 0 | P87: 0 | X87: 0 | AD87: 0 | AM87: 0 | AN87: 0
A88: Syrian Arab Republic | E88: 0 | J88: 0 | P88: 0 | X88: 0 | AD88: 0 | AM88: 0 | AN88: 0
A89: Tajikistan | E89: 0 | J89: 0 | P89: 0 | X89: 0 | AD89: 0 | AM89: 0 | AN89: 0
A90: Thailand | E90: 0 | J90: 0 | P90: 0 | X90: 0 | AD90: 0 | AM90: 0 | AN90: 0
A91: Trinidad and Tobago | E91: 0 | J91: 0 | P91: 0 | X91: 0 | AD91: 0 | AM91: 0 | AN91: 0
A92: Tunisia | E92: 0 | J92: 0 | P92: 0 | X92: 0 | AD92: 0 | AM92: 0 | AN92: 0
A93: Turkey | E93: 0 | J93: 0 | P93: 0 | X93: 0 | AD93: 0 | AM93: 0 | AN93: 0
A94: Turkmenistan | E94: 0 | J94: 0 | P94: 0 | X94: 0 | AD94: 0 | AM94: 0 | AN94: 0
A95: Ukraine | E95: 0 | J95: 0 | P95: 0 | X95: 0 | AD95: 0 | AM95: 0 | AN95: 0
A96: United Kingdom | E96: 0 | J96: 0 | P96: 0 | X96: 0 | AD96: 0 | AM96: 0 | AN96: 0
A97: United States | E97: 0 | J97: 0 | P97: 0 | X97: 0 | AD97: 0 | AM97: 0 | AN97: 0
A98: Uzbekistan | E98: 0 | J98: 0 | P98: 0 | X98: 0 | AD98: 0 | AM98: 0 | AN98: 0
A99: Venezuela | E99: 0 | J99: 0 | P99: 0 | X99: 0 | AD99: 0 | AM99: 0 | AN99: 0
A100: Vietnam | E100: 0 | J100: 0 | P100: 0 | X100: 0 | AD100: 0 | AM100: 0 | AN100: 0
A101: Non-specified/Other | E101: 0 | J101: 0 | P101: 0 | X101: 0 | AD101: 0 | AM101: 0 | AN101: 0
A102: Totaal Export | B102: =SUM(B7:B101) -> 0 | C102: 0 | D102: 0 | E102: 0 | F102: 0 | G102: 0 | H102: 0 | I102: 0 | J102: 0 | K102: 0 | L102: 0 | M102: 0 | N102: 0 | O102: 0 | P102: 0 | Q102: 0 | R102: 0 | S102: 0 | T102: 0 | U102: 0 | V102: 0 | W102: 0 | X102: 0 | Y102: 0 | Z102: 0 | AA102: 0 | AB102: 0 | AC102: 0 | AD102: 0 | AE102: 0 | AF102: 0 | AG102: 0 | AH102: 0 | AI102: 0 | AJ102: 0 | AK102: 0 | AL102: 0 | AM102: 0 | AN102: 0
B103: =IF(MIN(B7:B102)<0,"Negatief cijfer","") ->  | C103: =IF(MIN(C7:C102)<0,"Negatief cijfer","") -> 
V104: =IF(V102>U102, "Transport via CEPS (V102) moet kleiner zijn dan totaal transport (U102)","") -> 
A105: 1. Totaal Export van Totaal Ruwe Producten (E102) moet gelijk zijn aan Totaal Export in Table 1 (F14) | H105: ='Table 1'!G26 -> OK
A106: en Totaal Export van Totaal Producten (AM102) moet gelijk zijn aan Totaal Export in Table 2 (AK9) | H106: ='Table 2'!F26 -> OK

Sheet Labels (hidden)
A1: Active language is :
B2: NL
A4: Traductions / vertalingen :
A9: Sheet | B9: Column | C9: Row | D9: FR label | E9: NL label
A10: Intro | B10: B | C10: 6 | D10: Direction Générale Energie | E10: Algemene Directie Energie
A11: Intro | B11: B | C11: 7 | D11: Service Monitoring de l'Energie & Système Electrique | E11: Dienst Energiemonitoring & Elektriciteitssysteem
A12: Intro | B12: B | C12: 8 | D12: Service Qualité des produits pétroliers | E12: Dienst Kwaliteit van Aardolieproducten
A13: Intro | B13: B | C13: 15 | D13: Ce questionnaire a été établi conformément à l’Arrêté royal du 15 novembre 2017 relatif à l'exigence de déclaration de biocarburants, d'huiles minérales et de leurs produits de substitution d'origine biologique. Les données demandées dans les onglets « Table 1 », « Table 2 », « Table 3 » et « Table 4 » doivent être fournies à la Direction générale de l’Énergie au plus tard le 20ème jour du mois suivant celui du rapport, tel que stipulé à l’article 6 dudit Arrêté royal. En ce qui concerne ces onglets, le non-respect des articles 4, 6, 7 et 9 dudit Arrêté royal peut résulter en une amende allant de 1,24 euros à 495,79 euros. Les données demandées à partir de l’onglet « Biodiesel » doivent être fournies à la Direction générale de l’Énergie au plus tard le dernier jour ouvrable du mois suivant le trimestre concerné par les données, tel que stipulé dans la loi du 17 juillet 2013. En ce qui concerne ces onglets, le non-respect des articles 5, 6, 7 et 9 dudit Arrêté royal peut résulter en une amende administrative allant de 100 euros à 10.000 euros. En cas de répétition, l’amende peut être doublée. L’assurance est donnée aux déclarants que les informations transmises ne seront pas utilisées dans un but fiscal. Adresse e-mail : oil&biofuels@economie.fgov.be | E13: Deze vragenlijst is opgesteld conform het Koninklijk Besluit van 15 november 2017 betreffende de rapportageverplichting van biobrandstoffen, minerale oliën en hun substitutieproducten van biologische oorsprong. De gegevens gevraagd in tabbladen 'Table 1', 'Table 2', Table 3' en 'Table 4' moeten bezorgd worden aan de Algemene Directie Energie, uiterlijk tegen de 20ste dag van de maand volgend op de maand van rapportering, zoals vastgelegd in artikel 6 van bovenvernoemd Koninklijk Besluit. Wat betreft deze tabbladen, kan het niet naleven van artikel 4, 6, 7 en 9 van bovenvernoemd Koninklijk Besluit resulteren in een geldboete van 1,24 euro tot 495,79 euro. De gegevens gevraagd vanaf het tabblad 'Biodiesel' moeten bezorgd worden aan de Algemene Directie Energie, uiterlijk tegen de laatste werkdag van de maand volgend op het kwartaal waarop de gegevens betrekking hebben, zoals vastgelegd in de wet van 17 juli 2013 Wat betreft deze tabbladen, kan het niet naleven van artikel 5, 6, 7 en 9 van bovenvernoemd Koninklijk Besluit resulteren in een administratieve geldboete van 100 euro tot 10.000 euro. In geval van herhaling kan de geldboete worden verdubbeld. Aan de aangevers wordt de verzekering gegeven, dat de verstrekte gegevens niet voor fiscale doeleinden zullen worden gebruikt E-mail : oil&biofuels@economie.fgov.be
A14: Intro | B14: B | C14: 12 | D14: Déclarant | E14: Aangever
A15: Intro | B15: B | C15: 13 | D15: Mois de la déclaration | E15: Maand van aangifte
A16: Table 1 | B16: G | C16: 3 | D16: TOUS LES DONNÉES DOIVENT ÊTRE | E16: ALLE GEGEVENS MOETEN WORDEN
A17: Table 1 | B17: G | C17: 4 | D17: COMPLETÉES EN TONNE | E17: INGEGEVEN IN TON
A18: Table 1 | B18: A | C18: 7 | D18: Table 1: BALANCE PETROLE BRUT, CONDENSAT DE GAZ NATUREL ET PRODUITS INTERMEDIAIRES | E18: Table 1: BALANS RUWE OLIE, CONDENSATEN VAN AARDGAS EN INTERMEDIAIRE PRODUCTEN
A19: Table 1 | B19: C | C19: 10 | D19: Pétrole brut | E19: Ruwe olie
A20: Table 1 | B20: D | C20: 10 | D20: Condensat de gaz naturel | E20: Condensaten van aardgas
A21: Table 1 | B21: E | C21: 10 | D21: Produits intermédiaires | E21: Intermediaire producten
A22: Table 1 | B22: F | C22: 10 | D22: Total | E22: Totaal
A23: Table 1 | B23: B | C23: 12 | D23: Stock début | E23: Beginvoorraad
A24: Table 1 | B24: B | C24: 13 | D24: Importation | E24: Import
A25: Table 1 | B25: B | C25: 14 | D25: Exportation | E25: Export
A26: Table 1 | B26: B | C26: 15 | D26: Production | E26: Productie
A27: Table 1 | B27: B | C27: 16 | D27: Réceptions en libre pratique | E27: Ontvangsten vrij verkeer
A28: Table 1 | B28: B | C28: 17 | D28: Livraisons en libre pratique | E28: Leveringen vrij verkeer
A29: Table 1 | B29: B | C29: 18 | D29: Transfert de produits | E29: Productoverdracht
A30: Table 1 | B30: B | C30: 19 | D30: Stock fin | E30: Eindvoorraad
A31: Table 1 | B31: B | C31: 20 | D31: Refinery intake (Calculated) | E31: Refinery intake (Calculated)
A32: Table 1 | B32: B | C32: 21 | D32: Statistical difference | E32: Statistical difference
A33: Table 1 | B33: B | C33: 22 | D33: Refinery intake (Observed) | E33: Refinery intake (Observed)
A34: Table 1 | B34: B | C34: 23 | D34: Refinery losses | E34: Refinery losses
A35: Table 1 | B35: B | C35: 25 | D35: Total Importations (F13) = Total Importations de ces produits en Table 3 (E111) | E35: Totaal Import (F13) komt overeen met Totaal Import van deze producten in Table 3 (E111)
A36: Table 1 | B36: B | C36: 26 | D36: Total Exportations (F14) = Total Exportations de ces produits enTable 4 (E102) | E36: Totaal Export (F14) komt overeen met Totaal Export van deze producten in Table 4 (E102)
A37: Table 2 | B37: A | C37: 4 | D37: Table 2: BALANCE PRODUITS PETROLIERS | E37: Table 2: BALANS AFGEWERKTE OLIEPRODUCTEN
A38: Table 2 | B38: B | C38: 7 | D38: Stock début | E38: Beginvoorraad
A39: Table 2 | B39: B | C39: 8 | D39: Importation | E39: Import
A40: Table 2 | B40: B | C40: 9 | D40: Exportation | E40: Export
A41: Table 2 | B41: B | C41: 10 | D41: Soutage international | E41: Internationale bunkers
A42: Table 2 | B42: B | C42: 11 | D42: Refinery intake | E42: Refinery intake
A43: Table 2 | B43: B | C43: 12 | D43: Refinery Fuel | E43: Refinery Fuel
A44: Table 2 | B44: B | C44: 13 | D44: Production | E44: Productie
A45: Table 2 | B45: B | C45: 14 | D45: Réceptions en libre pratique | E45: Ontvangsten vrij verkeer
A46: Table 2 | B46: B | C46: 15 | D46: Livraisons en libre pratique | E46: Leveringen vrij verkeer
A47: Table 2 | B47: B | C47: 16 | D47: Transfert de produits | E47: Productoverdracht
A48: Table 2 | B48: B | C48: 17 | D48: Transfert d'additifs | E48: Overdracht additieven
A49: Table 2 | B49: B | C49: 18 | D49: Stock fin | E49: Eindvoorraad
A50: Table 2 | B50: B | C50: 19 | D50: Mise à la consommation calculée | E50: Berekende inverbruikstelling
A51: Table 2 | B51: B | C51: 20 | D51: Statistical difference | E51: Statistical difference
A52: Table 2 | B52: B | C52: 21 | D52: Mise à la consommation observée | E52: Geobserveerde inverbruikstelling
A53: Table 2 | B53: B | C53: 25 | D53: Total Importations (AK8) = Total Importations de ces produits en Table 3 (AM111) | E53: Totaal Import (AK8) komt overeen met Totaal Import van deze producten in Table 3 (AM111)
A54: Table 2 | B54: B | C54: 26 | D54: Total Exportations (AK9) = Total Exportations de ces produits en Table 4 (AM102) | E54: Totaal Export (AK9) komt overeen met Totaal Export van deze producten in Table 4 (AM102)
A55: Table 2 | B55: B | C55: 27 | D55: Total de transfert de produits = 0 | E55: Totaal van Productoverdracht is gelijk aan 0
A56: Table 2 | B56: B | C56: 28 | D56: Total de transfert d'additifs = 0 | E56: Totaal van Overdracht Additieven is gelijk aan 0
A57: Table 2 | B57: C | C57: 5 | D57: Additifs / Composants de mélange | E57: Additieven / Mengcomponent
A58: Table 2 | B58: D | C58: 6 | D58: Additif | E58: Additief
A59: Table 2 | B59: E | C59: 6 | D59: Bioéthanol | E59: Bio-ethanol
A60: Table 2 | B60: F | C60: 6 | D60: Biodiesel | E60: Biodiesel
A61: Table 2 | B61: G | C61: 5 | D61: Gaz de raffinerie (incondensable) | E61: Oncondenseerbaar raffinagegas
A62: Table 2 | B62: H | C62: 5 | D62: Total LPG | E62: Totaal LPG
A63: Table 2 | B63: I | C63: 6 | D63: Butane | E63: Butaan
A64: Table 2 | B64: J | C64: 6 | D64: Propane | E64: Propaan
A65: Table 2 | B65: K | C65: 6 | D65: Mélangé (LPG) | E65: Gemengd (LPG)
A66: Table 2 | B66: L | C66: 6 | D66: Autres LPG | E66: Andere LPG
A67: Table 2 | B67: M | C67: 5 | D67: Naphta | E67: Nafta
A68: Table 2 | B68: N | C68: 5 | D68: Total essence | E68: Totaal motor benzine
A69: Table 2 | B69: O | C69: 6 | D69: Essence 98 RON 10S | E69: Benzine 98 RON 10S
A70: Table 2 | B70: P | C70: 6 | D70: Essence 95 RON 10S | E70: Benzine 95 RON 10S
A71: Table 2 | B71: Q | C71: 6 | D71: Autres essence | E71: Andere benzine
A72: Table 2 | B72: R | C72: 5 | D72: Essence avion | E72: Vliegtuig- benzine
A73: Table 2 | B73: S | C73: 5 | D73: Total kerosène type carburéacteur | E73: Totaal kerosine type jet fuel
A74: Table 2 | B74: T | C74: 6 | D74: dont par pipeline CEPS | E74: waarvan via CEPS pijplijn
A75: Table 2 | B75: U | C75: 5 | D75: Pétrole lampant | E75: Lamp-petroleum
A76: Table 2 | B76: V | C76: 5 | D76: Total diesel / gasoil | E76: Totaal gas/diesel olie
A77: Table 2 | B77: W | C77: 6 | D77: Gasoil Diesel 10S | E77: Gasolie Diesel 10S
A78: Table 2 | B78: X | C78: 6 | D78: Gasoil de chauffage | E78: Gasolie verwarming
A79: Table 2 | B79: Y | C79: 6 | D79: Gasoil de chauffage Extra | E79: Gasolie verwarming Extra
A80: Table 2 | B80: Z | C80: 6 | D80: Gasoil navigation rhénane et intérieure | E80: Gasolie Rijn en binnenvaart
A81: Table 2 | B81: AA | C81: 6 | D81: Autres gasoil | E81: Andere Gasolie
A82: Table 2 | B82: AB | C82: 5 | D82: Fuel oil résiduel | E82: Zware residuele stookolie
A83: Table 2 | B83: AC | C83: 6 | D83: Souffre <1% | E83: Laag zwavel (<1%)
A84: Table 2 | B84: AD | C84: 6 | D84: Souffre >= 1% | E84: Hoog zwavel (>=1%)
A85: Table 2 | B85: AE | C85: 5 | D85: White spirit et Essences speciales | E85: White spirit en Speciale benzine
A86: Table 2 | B86: AF | C86: 5 | D86: Lubrifiants | E86: Smeer-middelen
A87: Table 2 | B87: AG | C87: 5 | D87: Bitume | E87: Bitumen
A88: Table 2 | B88: AH | C88: 5 | D88: Paraffines | E88: Paraffine
A89: Table 2 | B89: AI | C89: 5 | D89: Coke de pétrole | E89: Petroleum coke
A90: Table 2 | B90: AJ | C90: 5 | D90: Autres produits pétroliers | E90: Andere olieproducten
A91: Table 2 | B91: AK | C91: 5 | D91: Total produits pétroliers | E91: Totaal olieproducten
A92: Table 3 | B92: A | C92: 4 | D92: Table 3: IMPORTATION PAR PAYS | E92: Table 3: IMPORT PER LAND
A93: Table 3 | B93: A | C93: 111 | D93: Total Importations | E93: Totaal Import
A94: Table 3 | B94: A | C94: 114 | D94: 1. Total Importations de Total Produits Bruts (E111) = Total Importations en Table 1 (F13) | E94: 1. Totaal Import van Totaal Ruwe Producten (E111) moet gelijk zijn aan Totaal Import in Table 1 (F13)
A95: Table 3 | B95: A | C95: 115 | D95: et Total Importations de Total Produits Pétroliers (AM111) = Total Importations en Table 2 (AK8) | E95: en Totaal Import van Totaal Producten (AM111) moet gelijk zijn aan Totaal Import in Table 2 (AK8)
A96: Table 3 | B96: B | C96: 5 | D96: Pétrole brut | E96: Ruwe olie
A97: Table 3 | B97: C | C97: 5 | D97: Condensat de gaz naturel | E97: Condensaten van aardgas
A98: Table 3 | B98: D | C98: 5 | D98: Produits intermédiaires | E98: Intermediaire producten
A99: Table 3 | B99: E | C99: 5 | D99: Total Produits Bruts | E99: Totaal Ruwe Producten
A100: Table 3 | B100: F | C100: 5 | D100: Additifs / Composants de mélange | E100: Additieven / Mengcomponent
A101: Table 3 | B101: G | C101: 6 | D101: Classique | E101: Klassiek
A102: Table 3 | B102: H | C102: 6 | D102: Bioéthanol | E102: Bio-ethanol
A103: Table 3 | B103: I | C103: 6 | D103: Biodiesel | E103: Biodiesel
A104: Table 3 | B104: J | C104: 5 | D104: Total LPG | E104: Totaal LPG
A105: Table 3 | B105: K | C105: 6 | D105: Butane | E105: Butaan
A106: Table 3 | B106: L | C106: 6 | D106: Propane | E106: Propaan
A107: Table 3 | B107: M | C107: 6 | D107: Mélangé (LPG) | E107: Gemengd (LPG)
A108: Table 3 | B108: N | C108: 6 | D108: Autres LPG | E108: Andere LPG
A109: Table 3 | B109: O | C109: 5 | D109: Naphta | E109: Nafta
A110: Table 3 | B110: P | C110: 5 | D110: Total essence | E110: Totaal motor benzine
A111: Table 3 | B111: Q | C111: 6 | D111: Essence 98 RON 10S | E111: Benzine 98 RON 10S
A112: Table 3 | B112: R | C112: 6 | D112: Essence 95 RON 10S | E112: Benzine 95 RON 10S
A113: Table 3 | B113: S | C113: 6 | D113: Autres essence | E113: Andere benzine
A114: Table 3 | B114: T | C114: 5 | D114: Essence avion | E114: Vliegtuig- benzine
A115: Table 3 | B115: U | C115: 5 | D115: Total kerosène type carburéacteur | E115: Totaal kerosine type jet fuel
A116: Table 3 | B116: V | C116: 6 | D116: dont par pipeline CEPS | E116: waarvan via CEPS pijplijn
A117: Table 3 | B117: W | C117: 5 | D117: Pétrole lampant | E117: Lamp-petroleum
A118: Table 3 | B118: X | C118: 5 | D118: Total diesel / gasoil | E118: Totaal gas/diesel olie
A119: Table 3 | B119: Y | C119: 6 | D119: Gasoil Diesel 10S | E119: Gasolie Diesel 10S
A120: Table 3 | B120: Z | C120: 6 | D120: Gasoil de chauffage | E120: Gasolie verwarming
A121: Table 3 | B121: AA | C121: 6 | D121: Gasoil de chauffage Extra | E121: Gasolie verwarming Extra
A122: Table 3 | B122: AB | C122: 6 | D122: Gasoil navigation rhénane et intérieure | E122: Gasolie Rijn en binnenvaart
A123: Table 3 | B123: AC | C123: 6 | D123: Autres gasoil | E123: Andere Gasolie
A124: Table 3 | B124: AD | C124: 5 | D124: Fuel oil résiduel | E124: Zware residuele stookolie
A125: Table 3 | B125: AE | C125: 6 | D125: Souffre <1% | E125: Laag zwavel (<1%)
A126: Table 3 | B126: AF | C126: 6 | D126: Souffre >= 1% | E126: Hoog zwavel (>=1%)
A127: Table 3 | B127: AG | C127: 5 | D127: White spirit et Essences speciales | E127: White spirit en Speciale benzine
A128: Table 3 | B128: AH | C128: 5 | D128: Lubrifiants | E128: Smeer-middelen
A129: Table 3 | B129: AI | C129: 5 | D129: Bitume | E129: Bitumen
A130: Table 3 | B130: AJ | C130: 5 | D130: Paraffines | E130: Paraffine
A131: Table 3 | B131: AK | C131: 5 | D131: Coke de pétrole | E131: Petroleum coke
A132: Table 3 | B132: AL | C132: 5 | D132: Autres produits pétroliers | E132: Andere olieproducten
A133: Table 3 | B133: AM | C133: 5 | D133: Total Produits Pétroliers | E133: Totaal Producten
A134: Table 3 | B134: AN | C134: 5 | D134: Total Oil | E134: Totaal Olie
A135: Table 4 | B135: A | C135: 4 | D135: Table 4: EXPORTATION PAR PAYS | E135: Table 4: EXPORT PER LAND
A136: Table 4 | B136: A | C136: 102 | D136: Total Exportations | E136: Totaal Export
A137: Table 4 | B137: A | C137: 105 | D137: 1. Total Exportations de Total Produits Bruts (E102) = Total Exportations en Table 1 (F14) | E137: 1. Totaal Export van Totaal Ruwe Producten (E102) moet gelijk zijn aan Totaal Export in Table 1 (F14)
A138: Table 4 | B138: A | C138: 106 | D138: et Total Exportations de Total Produits Pétroliers (AM102) = Total Exportations en Table 2 (AK9) | E138: en Totaal Export van Totaal Producten (AM102) moet gelijk zijn aan Totaal Export in Table 2 (AK9)
A139: Table 4 | B139: B | C139: 5 | D139: Pétrole brut | E139: Ruwe olie
A140: Table 4 | B140: C | C140: 5 | D140: Condensat de gaz naturel | E140: Condensaten van aardgas
A141: Table 4 | B141: D | C141: 5 | D141: Produits intermédiaires | E141: Intermediaire producten
A142: Table 4 | B142: E | C142: 5 | D142: Total Produits Bruts | E142: Totaal Ruwe Producten
A143: Table 4 | B143: F | C143: 5 | D143: Additifs / Composants de mélange | E143: Additieven / Mengcomponent
A144: Table 4 | B144: G | C144: 6 | D144: Classique | E144: Klassiek
A145: Table 4 | B145: H | C145: 6 | D145: Bioéthanol | E145: Bio-ethanol
A146: Table 4 | B146: I | C146: 6 | D146: Biodiesel | E146: Biodiesel
A147: Table 4 | B147: J | C147: 5 | D147: Total LPG | E147: Totaal LPG
A148: Table 4 | B148: K | C148: 6 | D148: Butane | E148: Butaan
A149: Table 4 | B149: L | C149: 6 | D149: Propane | E149: Propaan
A150: Table 4 | B150: M | C150: 6 | D150: Mélangé (LPG) | E150: Gemengd (LPG)
A151: Table 4 | B151: N | C151: 6 | D151: Autres LPG | E151: Andere LPG
A152: Table 4 | B152: O | C152: 5 | D152: Naphta | E152: Nafta
A153: Table 4 | B153: P | C153: 5 | D153: Total essence | E153: Totaal motor benzine
A154: Table 4 | B154: Q | C154: 6 | D154: Essence 98 RON 10S | E154: Benzine 98 RON 10S
A155: Table 4 | B155: R | C155: 6 | D155: Essence 95 RON 10S | E155: Benzine 95 RON 10S
A156: Table 4 | B156: S | C156: 6 | D156: Autres essence | E156: Andere benzine
A157: Table 4 | B157: T | C157: 5 | D157: Essence avion | E157: Vliegtuig- benzine
A158: Table 4 | B158: U | C158: 5 | D158: Total kerosène type carburéacteur | E158: Totaal kerosine type jet fuel
A159: Table 4 | B159: V | C159: 6 | D159: dont par pipeline CEPS | E159: waarvan via CEPS pijplijn
A160: Table 4 | B160: W | C160: 5 | D160: Pétrole lampant | E160: Lamp-petroleum
A161: Table 4 | B161: X | C161: 5 | D161: Total diesel / gasoil | E161: Totaal gas/diesel olie
A162: Table 4 | B162: Y | C162: 6 | D162: Gasoil Diesel 10S | E162: Gasolie Diesel 10S
A163: Table 4 | B163: Z | C163: 6 | D163: Gasoil de chauffage | E163: Gasolie verwarming
A164: Table 4 | B164: AA | C164: 6 | D164: Gasoil de chauffage Extra | E164: Gasolie verwarming Extra
A165: Table 4 | B165: AB | C165: 6 | D165: Gasoil navigation rhénane et intérieure | E165: Gasolie Rijn en binnenvaart
A166: Table 4 | B166: AC | C166: 6 | D166: Autres gasoil | E166: Andere Gasolie
A167: Table 4 | B167: AD | C167: 5 | D167: Fuel oil résiduel | E167: Zware residuele stookolie
A168: Table 4 | B168: AE | C168: 6 | D168: Souffre <1% | E168: Laag zwavel (<1%)
A169: Table 4 | B169: AF | C169: 6 | D169: Souffre >= 1% | E169: Hoog zwavel (>=1%)
A170: Table 4 | B170: AG | C170: 5 | D170: White spirit et Essences speciales | E170: White spirit en Speciale benzine
A171: Table 4 | B171: AH | C171: 5 | D171: Lubrifiants | E171: Smeer-middelen
A172: Table 4 | B172: AI | C172: 5 | D172: Bitume | E172: Bitumen
A173: Table 4 | B173: AJ | C173: 5 | D173: Paraffines | E173: Paraffine
A174: Table 4 | B174: AK | C174: 5 | D174: Coke de pétrole | E174: Petroleum coke
A175: Table 4 | B175: AL | C175: 5 | D175: Autres produits pétroliers | E175: Andere olieproducten
A176: Table 4 | B176: AM | C176: 5 | D176: Total Produits Pétroliers | E176: Totaal Producten
A177: Table 4 | B177: AN | C177: 5 | D177: Total Oil | E177: Totaal Olie
A178: Table 2 | B178: M | C178: 23 | D178: Mise à la consommation : | E178: Inverbruikstelling :
A179: Table 2 | B179: U | C179: 23 | D179: Mise à la consommation : | E179: Inverbruikstelling :
A180: Table 2 | B180: M | C180: 24 | D180: dont bioéthanol : | E180: waarvan bio-ethanol :
A181: Table 2 | B181: U | C181: 24 | D181: dont biodiesel : | E181: waarvan biodiesel :
A182: Balans - omzetting | B182: A | C182: 2 | D182: Biocarburants: conversion de la masse en volume des quantités mises à la consommation | E182: Biobrandstoffen: omzetting van massa naar volume van de inverbruikgestelde hoeveelheden
A183: Balans - omzetting | B183: A | C183: 10 | D183: Janvier | E183: Januari
A184: Balans - omzetting | B184: A | C184: 11 | D184: Février | E184: Februari
A185: Balans - omzetting | B185: A | C185: 12 | D185: Mars | E185: Maart
A186: Balans - omzetting | B186: A | C186: 14 | D186: Avril | E186: April
A187: Balans - omzetting | B187: A | C187: 15 | D187: Mai | E187: Mei
A188: Balans - omzetting | B188: A | C188: 16 | D188: Juin | E188: Juni
A189: Balans - omzetting | B189: A | C189: 18 | D189: Juillet | E189: Juli
A190: Balans - omzetting | B190: A | C190: 19 | D190: Août | E190: Augustus
A191: Balans - omzetting | B191: A | C191: 20 | D191: Septembre | E191: September
A192: Balans - omzetting | B192: A | C192: 22 | D192: Octobre | E192: Oktober
A193: Balans - omzetting | B193: A | C193: 23 | D193: Novembre | E193: November
A194: Balans - omzetting | B194: A | C194: 24 | D194: Décembre | E194: December
A195: Balans - omzetting | B195: A | C195: 26 | D195: Total | E195: Totaal
A196: Balans - omzetting | B196: B | C196: 4 | D196: Le bilan bio doit être rempli chaque trimestre | E196: De biobalans dient per kwartaal ingevuld te worden
A197: Balans - omzetting | B197: B | C197: 5 | D197: (au plus tard le dernier jour ouvrable du mois qui suit le trimestre) | E197: (op de laatste werkdag van de maand volgend op het kwartaal)
A198: Balans - omzetting | B198: B | C198: 7 | D198: Diesel (en mélange) | E198: Diesel (gemengd)
A199: Balans - omzetting | B199: B | C199: 9 | D199: Balance pétrolière (tonne) | E199: Petroleumbalans (ton)
A200: Balans - omzetting | B200: B | C200: 29 | D200: À remplir | E200: in te vullen
A201: Balans - omzetting | B201: D | C201: 9 | D201: Densité calculée (kg/m³) | E201: Berekende massadichtheid (kg/m³)
A202: Balans - omzetting | B202: E | C202: 9 | D202: Balance pétrolière (tonne) | E202: Petroleumbalans (ton)
A203: Balans - omzetting | B203: G | C203: 9 | D203: Densité calculée (kg/m³) | E203: Berekende massadichtheid (kg/m³)
A204: Balans - omzetting | B204: F | C204: 4 | D204: TRIMESTRIELLEMENT | E204: DRIEMAANDELIJKS
A205: Balans - omzetting | B205: D | C205: 29 | D205: Toutes les données sont exprimées en 15°C | E205: De gegevens worden uitgedrukt bij 15°C
... 397 more rows

Sheet Balans - omzetting (hidden)
A2: Biobrandstoffen: omzetting van massa naar volume van de inverbruikgestelde hoeveelheden
B4: De biobalans dient per kwartaal ingevuld te worden | F4: DRIEMAANDELIJKS
B5: (op de laatste werkdag van de maand volgend op het kwartaal)
B7: Diesel (gemengd) | E7: Benzine (gemengd)
B9: Petroleumbalans (ton) | C9: Biobalans (m³) | D9: Berekende massadichtheid (kg/m³) | E9: Petroleumbalans (ton) | F9: Biobalans (m³) | G9: Berekende massadichtheid (kg/m³)
A10: Januari
A11: Februari
A12: Maart
A13: Q1 | B13: =B10+B11+B12 -> 0 | D13: =IFERROR(B13/C13*1000,0) -> 0 | E13: =E10+E11+E12 -> 0 | G13: =IFERROR(E13/F13*1000,0) -> 0
A14: April
A15: Mei
A16: Juni
A17: Q2 | B17: =B14+B15+B16 -> 0 | D17: =IFERROR(B17/C17*1000,0) -> 0 | E17: =E14+E15+E16 -> 0 | G17: =IFERROR(E17/F17*1000,0) -> 0
A18: Juli
A19: Augustus
A20: September
A21: Q3 | B21: =B18+B19+B20 -> 0 | D21: =IFERROR(B21/C21*1000,0) -> 0 | E21: =E18+E19+E20 -> 0 | G21: =IFERROR(E21/F21*1000,0) -> 0
A22: Oktober
A23: November
A24: December
A25: Q4 | B25: =B22+B23+B24 -> 0 | D25: =IFERROR(B25/C25*1000,0) -> 0 | E25: =E22+E23+E24 -> 0 | G25: =IFERROR(E25/F25*1000,0) -> 0
A26: Totaal | B26: =B13+B17+B21+B25 -> 0 | C26: =C13+C17+C21+C25 -> 0 | D26: =IFERROR(B26/C26*1000,0) -> 0 | E26: =E13+E17+E21+E25 -> 0 | F26: =F13+F17+F21+F25 -> 0 | G26: =IFERROR(E26/F26*1000,0) -> 0
B29: in te vullen | D29: De gegevens worden uitgedrukt bij 15°C

Sheet Biodiesel (hidden)
B2: Bijlage I - Trimestriële balans met betrekking tot de verplichte bijmenging van biobrandstoffen in de hoeveelheden diesel die tot verbruik worden uitgeslagen
B5: TRIMESTER VAN DE IN VERBRUIKSTELLING (voorbeeld 2017 / Q1) : | E5: 2017 / Q1
B8: IDENTIFICATIE VAN DE MAATSCHAPPIJ (maatschappelijke zetel) : | E8: in te vullen | F8: automatisch ingevuld
B11: NAAM : | D11: Petrol Company | E11: ACCIJNSNUMMER : | G11: BE0400700968
B12: STRAAT EN NR. : | D12: Stadstraat, 4 | E12: AANTAL ENTREPOTNUMMERS : | G12: 3
B13: POSTCODE : | D13: 1000 | E13: ENTREPOT EN ADRES NR 1 : | G13: BE1B000013290 - Stadstraat, 4 - 1000 Brussel
B14: PLAATS : | D14: Brussel | E14: ENTREPOT EN ADRES NR 2 : | G14: BE1H000013298 - Hasseltweg, 45 - 2018 Antwerpen
B15: CONTACTPERSOON : | D15: Louis Deprez | E15: ENTREPOT EN ADRES NR 3 : | G15: BE1L000013294 - Bergenlaan, 241 - 3000 Leuven
B16: TELNR. : | D16: 02 / 220 45 89
B17: MAILADRES : | D17: louis.deprez@petrolcompany.be
B20: GEGEVENS VAN DE IN VERBUIK STELLING (1°) : | E20: Bij het invullen van de gegevens bij "waarvan biobrandstof" worden automatisch rijen ingevoegd (tot 80).
B22: Nr. lijn | C22: Datum | D22: Gemengde diesel EN590 (3°) | E22: waarvan fossiel (3°)(4°) | F22: waarvan biobrandstof (2°)(3°) | G22: Type Bio (zie "Lijst duurzame biobrandstoffen") (5°) | H22: Categorie (A/B/C) | I22: N° van technisch dossier (cat. B / C) | J22: Inschrijvings N° BDD K.B. 26/11/2011 | K22: FE | L22: VE | M22: FC | N22: VN
B24: 1 | C24: 2016-12-11 | D24: 1000 | E24: 935 | F24: 60 | G24: Bio 2 | H24: A | K24: =IFERROR(VLOOKUP(G24,$B$171:$G$175,6,),0) -> 1 | L24: =F24*K24 -> 60 | M24: =IF(OR(H24="A",H24="B"),1,IF(H24="C",2,0)) -> 1 | N24: =L24*M24 -> 60
B25: 2 | F25: 5 | G25: Bio 10 | H25: C | K25: 1.03030303 | L25: =F25*K25 -> 5.151515152 | M25: 2 | N25: =L25*M25 -> 10.3030303
B26: 3 | K26: 0 | L26: 0 | M26: 0 | N26: 0
B27: 4 | K27: 0 | L27: 0 | M27: 0 | N27: 0
B28: 5 | K28: 0 | L28: 0 | M28: 0 | N28: 0
B29: 6 | K29: 0 | L29: 0 | M29: 0 | N29: 0
B30: 7 | K30: 0 | L30: 0 | M30: 0 | N30: 0
B31: 8 | K31: 0 | L31: 0 | M31: 0 | N31: 0
B32: 9 | K32: 0 | L32: 0 | M32: 0 | N32: 0
B33: 10 | K33: 0 | L33: 0 | M33: 0 | N33: 0
B34: 11 | K34: 0 | L34: 0 | M34: 0 | N34: 0
B35: 12 | K35: 0 | L35: 0 | M35: 0 | N35: 0
B36: 13 | K36: 0 | L36: 0 | M36: 0 | N36: 0
B37: 14 | K37: 0 | L37: 0 | M37: 0 | N37: 0
B38: 15 | K38: 0 | L38: 0 | M38: 0 | N38: 0
B39: 16 | K39: 0 | L39: 0 | M39: 0 | N39: 0
B40: 17 | K40: 0 | L40: 0 | M40: 0 | N40: 0
B41: 18 | K41: 0 | L41: 0 | M41: 0 | N41: 0
B42: 19 | K42: 0 | L42: 0 | M42: 0 | N42: 0
B43: 20 | K43: 0 | L43: 0 | M43: 0 | N43: 0
B44: 21 | K44: 0 | L44: 0 | M44: 0 | N44: 0
B45: 22 | K45: 0 | L45: 0 | M45: 0 | N45: 0
B46: 23 | K46: 0 | L46: 0 | M46: 0 | N46: 0
B47: 24 | K47: 0 | L47: 0 | M47: 0 | N47: 0
B48: 25 | K48: 0 | L48: 0 | M48: 0 | N48: 0
B49: 26 | K49: 0 | L49: 0 | M49: 0 | N49: 0
B50: 27 | K50: 0 | L50: 0 | M50: 0 | N50: 0
B51: 28 | K51: 0 | L51: 0 | M51: 0 | N51: 0
B52: 29 | K52: 0 | L52: 0 | M52: 0 | N52: 0
B53: 30 | K53: 0 | L53: 0 | M53: 0 | N53: 0
B54: 31 | K54: 0 | L54: 0 | M54: 0 | N54: 0
B55: 32 | K55: 0 | L55: 0 | M55: 0 | N55: 0
B56: 33 | K56: =IFERROR(VLOOKUP(G56,$B$171:$G$175,6,),0) -> 0 | L56: 0 | M56: =IF(OR(H56="A",H56="B"),1,IF(H56="C",2,0)) -> 0 | N56: 0
B57: 34 | K57: 0 | L57: 0 | M57: 0 | N57: 0
B58: 35 | K58: 0 | L58: 0 | M58: 0 | N58: 0
B59: 36 | K59: 0 | L59: 0 | M59: 0 | N59: 0
B60: 37 | K60: 0 | L60: 0 | M60: 0 | N60: 0
B61: 38 | K61: 0 | L61: 0 | M61: 0 | N61: 0
B62: 39 | K62: 0 | L62: 0 | M62: 0 | N62: 0
B63: 40 | K63: 0 | L63: 0 | M63: 0 | N63: 0
B64: 41 | K64: 0 | L64: 0 | M64: 0 | N64: 0
B65: 42 | K65: 0 | L65: 0 | M65: 0 | N65: 0
B66: 43 | K66: 0 | L66: 0 | M66: 0 | N66: 0
B67: 44 | K67: 0 | L67: 0 | M67: 0 | N67: 0
B68: 45 | K68: 0 | L68: 0 | M68: 0 | N68: 0
B69: 46 | K69: 0 | L69: 0 | M69: 0 | N69: 0
B70: 47 | K70: 0 | L70: 0 | M70: 0 | N70: 0
B71: 48 | K71: 0 | L71: 0 | M71: 0 | N71: 0
B72: 49 | K72: 0 | L72: 0 | M72: 0 | N72: 0
B73: 50 | K73: 0 | L73: 0 | M73: 0 | N73: 0
B74: 51 | K74: 0 | L74: 0 | M74: 0 | N74: 0
B75: 52 | K75: 0 | L75: 0 | M75: 0 | N75: 0
B76: 53 | K76: 0 | L76: 0 | M76: 0 | N76: 0
B77: 54 | K77: 0 | L77: 0 | M77: 0 | N77: 0
B78: 55 | K78: 0 | L78: 0 | M78: 0 | N78: 0
B79: 56 | K79: 0 | L79: 0 | M79: 0 | N79: 0
B80: 57 | K80: 0 | L80: 0 | M80: 0 | N80: 0
B81: 58 | K81: 0 | L81: 0 | M81: 0 | N81: 0
B82: 59 | K82: 0 | L82: 0 | M82: 0 | N82: 0
B83: 60 | K83: 0 | L83: 0 | M83: 0 | N83: 0
B84: 61 | K84: 0 | L84: 0 | M84: 0 | N84: 0
B85: 62 | K85: 0 | L85: 0 | M85: 0 | N85: 0
B86: 63 | K86: 0 | L86: 0 | M86: 0 | N86: 0
B87: 64 | K87: 0 | L87: 0 | M87: 0 | N87: 0
B88: 65 | K88: =IFERROR(VLOOKUP(G88,$B$171:$G$175,6,),0) -> 0 | L88: 0 | M88: =IF(OR(H88="A",H88="B"),1,IF(H88="C",2,0)) -> 0 | N88: 0
B89: 66 | K89: 0 | L89: 0 | M89: 0 | N89: 0
B90: 67 | K90: 0 | L90: 0 | M90: 0 | N90: 0
B91: 68 | K91: 0 | L91: 0 | M91: 0 | N91: 0
B92: 69 | K92: 0 | L92: 0 | M92: 0 | N92: 0
B93: 70 | K93: 0 | L93: 0 | M93: 0 | N93: 0
B94: 71 | K94: 0 | L94: 0 | M94: 0 | N94: 0
B95: 72 | K95: 0 | L95: 0 | M95: 0 | N95: 0
B96: 73 | K96: 0 | L96: 0 | M96: 0 | N96: 0
B97: 74 | K97: 0 | L97: 0 | M97: 0 | N97: 0
B98: 75 | K98: 0 | L98: 0 | M98: 0 | N98: 0
B99: 76 | K99: 0 | L99: 0 | M99: 0 | N99: 0
B100: 77 | K100: 0 | L100: 0 | M100: 0 | N100: 0
B101: 78 | K101: 0 | L101: 0 | M101: 0 | N101: 0
B102: 79 | K102: 0 | L102: 0 | M102: 0 | N102: 0
B103: 80 | K103: 0 | L103: 0 | M103: 0 | N103: 0
B104: ∑ | D104: =SUM(D24:D103) -> 1000 | E104: =SUM(E24:E103) -> 935 | F104: =SUM(F24:F103) -> 65 | L104: =SUM(L24:L103) -> 65.15151515 | N104: =SUM(N24:N103) -> 70.3030303
B106: Opmerkingen : | G106: ∆ stocks (*) :
B107: 1° Enkel de reëel tot verbruik uitgeslagen producten tijdens het trimester | H107: I | J107: II | M107: III
B108: 2° Indien volumes naar een derde worden overgebracht, onder schorsing van accijnzen | G108: Voorraad begin trimester | H108: Aankopen | J108: Verkopen | M108: Inverbruikstellingen | N108: Voorraad eind trimester
B109: of de in verbruikstelling voor rekening van een derde gebeurt, moeten de geschreven | H109: Gemengd | I109: Puur | J109: Gemengd | K109: Puur | L109: Uitgevoerd
B110: verklaringen in het besluit betreffende "de regels en voorwaarden in verband | F110: Categorie A | G110: 200 | H110: 50 | I110: 30 | J110: 10 | K110: 15 | L110: 5 | M110: =SUMIF(H24:H103,"A",F24:F103) -> 60 | N110: =G110+H110+I110-SUM(J110:M110) -> 190
B111: met de trimestriële aangifte " steeds voorzien worden | F111: Categorie B | G111: 150 | H111: 30 | I111: 15 | J111: 5 | K111: 10 | L111: 20 | M111: =SUMIF(H24:H103,"b",F24:F103) -> 0 | N111: =G111+H111+I111-SUM(J111:M111) -> 160
B112: 3° De in te vullen gegevens moeten uitgedrukt zijn in m³ bij 15°C | F112: Categorie C | G112: 100 | H112: 20 | I112: 15 | J112: 5 | K112: 10 | L112: 20 | M112: =SUMIF(H24:H103,"C",F24:F103) -> 5 | N112: =G112+H112+I112-SUM(J112:M112) -> 95
B113: 4° Als meerdere types biobrandstoffen in een volume fossiel gemengd zijn dient dit volume | G113: (*) Enkel reële volumes biobrandstoffen
B114: fossiel slechts één keer in kolom E berekend te worden
B115: 5° De werkelijk bijgemengde biobrandstof dient aangegeven te worden
B116: Synthese : | G116: Legende :
C118: Bereikte waarde (m³) | D118: % bereikt | G118: VR = reëel volume | I118: A | J118: : categorie A
B119: VR | C119: =F104 -> 65 | D119: =F104/(D104) -> 0.065 | G119: FE = corrigerende Energie Factor - tegenwaarde FAME | I119: B | J119: : categorie B
B120: VN cat. A | C120: =SUMIF(H24:H103,"A",N24:N103) -> 60 | D120: =C120/(E104+L104) -> 0.05999091047 | G120: VE = Gelijkwaardig Volume FAME = VR x FE | I120: C | J120: : categorie C
B121: VN cat. B | C121: =SUMIF(H24:H103,"B",N24:N103) -> 0 | D121: =C121/(E104+L104) -> 0 | G121: FC = Corrigerende Factor van de categorie
B122: VN cat. C | C122: =SUMIF(H24:H103,"C",N24:N103) -> 10.3030303 | D122: =C122/(E104+L104) -> 0.01030146947 | E122: Verplichting: maximum 1,5 % | G122: VN = Nominaal volume= VR x FE x FC = VE x FC
B123: VN totaal (A+B+C) | C123: =SUM(C120:C122) -> 70.3030303 | D123: =C123/(E104+L104) -> 0.07029237994 | E123: Verplichting: minimum 6 %
B126: Gezien om gevoegd te worden bij ons besluit van 15 november 2017 betreffende de rapportageverplichting van biobrandstoffen, minerale oliën en hun substitutieproducten van biologische oorsprong
E137: Van Koningswege :
E157: De Minister van Energie,
E158: Leefmilieu en Duurzame Ontwikkeling
E168: M.C. MARGHEM
B171: Ref. N° | C171: Brandstof | D171: Energie-inhoud in volume (calorische onderwaarde, MJ/l) | E171: Categorie | F171: FC | G171: FE
B172: Bio 2 | C172: Biodiesel (methylester op basis van plantaardig of dierlijke olie, van diesel kwaliteit, voor toepassing als biobrandstof) | D172: 33 | E172: A / C (*) | F172: 1 / 2 (*) | G172: =D172/33 -> 1
B173: Bio 9 | C173: Fisher-Tropsch diesel (een synthetische KWS of mengsel van synthetische KWS uit biomassa) | D173: 34 | E173: B | F173: 1 / 2 (*) | G173: =D173/33 -> 1.03030303
B174: Bio 10 | C174: Waterstofbehandelende plantaardige olie (plantaardige olie die thermochemisch is behandeld met waterstof) | D174: 34 | E174: B | F174: 1 / 2 (*) | G174: =D174/33 -> 1.03030303
B175: Bio 11 | C175: Zuivere plantaardige olie (olie die uit oliehoudende planten is verkregen door persing, extractie of vergelijkbare procedures, ruw of geraffineerd maar niet chemisch gemodificeerd, voor zover verenigbaar met het betreffende motortype en de overeenkomstige emissie-eisen) | D175: 34 | E175: B | F175: 1 / 2 (*) | G175: =D175/33 -> 1.03030303
B177: (*) Bij aanvaarding van dubbele telling

Sheet E95 - E5 (hidden)
B2: Bijlage I - Trimestriële balans met betrekking tot de verplichte bijmenging van biobrandstoffen in de hoeveelheden benzine E95 - E5 die tot verbruik worden uitgeslagen
B5: TRIMESTER VAN DE IN VERBRUIKSTELLING (voorbeeld 2017 / Q1) : | E5: =Biodiesel!E5 -> 2017 / Q1
B8: IDENTIFICATIE VAN DE MAATSCHAPPIJ (maatschappelijke zetel) : | E8: in te vullen | F8: automatisch ingevuld
B11: NAAM : | D11: =Biodiesel!D11 -> Petrol Company | E11: ACCIJNSNUMMER : | G11: =Biodiesel!G11 -> BE0400700968
B12: STRAAT EN NR. : | D12: =Biodiesel!D12 -> Stadstraat, 4 | E12: AANTAL ENTREPOTNUMMERS : | G12: =Biodiesel!G12 -> 3
B13: POSTCODE : | D13: =Biodiesel!D13 -> 1000 | E13: ENTREPOT EN ADRES NR 1 : | G13: =Biodiesel!G13 -> BE1B000013290 - Stadstraat, 4 - 1000 Brussel
B14: PLAATS : | D14: =Biodiesel!D14 -> Brussel | E14: ENTREPOT EN ADRES NR 2 : | G14: =Biodiesel!G14 -> BE1H000013298 - Hasseltweg, 45 - 2018 Antwerpen
B15: CONTACTPERSOON : | D15: =Biodiesel!D15 -> Louis Deprez | E15: ENTREPOT EN ADRES NR 3 : | G15: =Biodiesel!G15 -> BE1L000013294 - Bergenlaan, 241 - 3000 Leuven
B16: TELNR. : | D16: =Biodiesel!D16 -> 02 / 220 45 89
B17: MAILADRES : | D17: =Biodiesel!D17 -> louis.deprez@petrolcompany.be
B20: GEGEVENS VAN DE IN VERBUIK STELLING (1°) : | E20: Bij het invullen van de gegevens bij "waarvan biobrandstof" worden automatisch rijen ingevoegd (tot 40).
B22: Nr. lijn | C22: Datum | D22: Gemengde benzine EN228 (3°): E95 - E5 | E22: waarvan fossiel (3°)(4°) | F22: waarvan biobrandstof (2°)(3°) | G22: Type Bio (zie "Lijst duurzame biobrandstoffen") (5°) | H22: Categorie (A/B/C) | I22: N° van technisch dossier (cat. B / C) | J22: Inschrijvings N° BDD K.B. 26/11/2011 | K22: FE | L22: VE | M22: FC | N22: VN
B24: 1 | C24: 2016-12-11 | D24: 500 | E24: 450 | F24: 20 | G24: Bio 1 | H24: A | K24: =IFERROR(VLOOKUP(G24,$B$122:$G$129,6,),0) -> 1 | L24: =IF(G24="Bio 3",F24*K24*0.37,IF(G24="Bio 5",0.22*F24*K24,IF(G24="Bio 7",0.29*F24*K24,F24*K24))) -> 20 | M24: =IF(OR(H24="A",H24="B"),1,IF(H24="C",2,0)) -> 1 | N24: =L24*M24 -> 20
B25: 2 | F25: 30 | G25: Bio 3 | H25: B | K25: 1.285714286 | L25: 14.27142857 | M25: 1 | N25: 14.27142857
B26: 3 | K26: 0 | L26: 0 | M26: 0 | N26: 0
B27: 4 | K27: 0 | L27: 0 | M27: 0 | N27: 0
B28: 5 | K28: 0 | L28: 0 | M28: 0 | N28: 0
B29: 6 | K29: 0 | L29: 0 | M29: 0 | N29: 0
B30: 7 | K30: 0 | L30: 0 | M30: 0 | N30: 0
B31: 8 | K31: 0 | L31: 0 | M31: 0 | N31: 0
B32: 9 | K32: 0 | L32: 0 | M32: 0 | N32: 0
B33: 10 | K33: 0 | L33: 0 | M33: 0 | N33: 0
B34: 11 | K34: 0 | L34: 0 | M34: 0 | N34: 0
B35: 12 | K35: 0 | L35: 0 | M35: 0 | N35: 0
B36: 13 | K36: 0 | L36: 0 | M36: 0 | N36: 0
B37: 14 | K37: 0 | L37: 0 | M37: 0 | N37: 0
B38: 15 | K38: 0 | L38: 0 | M38: 0 | N38: 0
B39: 16 | K39: 0 | L39: 0 | M39: 0 | N39: 0
B40: 17 | K40: 0 | L40: 0 | M40: 0 | N40: 0
B41: 18 | K41: 0 | L41: 0 | M41: 0 | N41: 0
B42: 19 | K42: 0 | L42: 0 | M42: 0 | N42: 0
B43: 20 | K43: 0 | L43: 0 | M43: 0 | N43: 0
B44: 21 | K44: 0 | L44: 0 | M44: 0 | N44: 0
B45: 22 | K45: 0 | L45: 0 | M45: 0 | N45: 0
B46: 23 | K46: 0 | L46: 0 | M46: 0 | N46: 0
B47: 24 | K47: 0 | L47: 0 | M47: 0 | N47: 0
B48: 25 | K48: 0 | L48: 0 | M48: 0 | N48: 0
B49: 26 | K49: 0 | L49: 0 | M49: 0 | N49: 0
B50: 27 | K50: 0 | L50: 0 | M50: 0 | N50: 0
B51: 28 | K51: 0 | L51: 0 | M51: 0 | N51: 0
B52: 29 | K52: 0 | L52: 0 | M52: 0 | N52: 0
B53: 30 | K53: 0 | L53: 0 | M53: 0 | N53: 0
B54: 31 | K54: 0 | L54: 0 | M54: 0 | N54: 0
B55: 32 | K55: 0 | L55: 0 | M55: 0 | N55: 0
B56: 33 | K56: 0 | L56: 0 | M56: 0 | N56: 0
B57: 34 | K57: 0 | L57: 0 | M57: 0 | N57: 0
B58: 35 | K58: 0 | L58: 0 | M58: 0 | N58: 0
B59: 36 | K59: 0 | L59: 0 | M59: 0 | N59: 0
B60: 37 | K60: 0 | L60: 0 | M60: 0 | N60: 0
B61: 38 | K61: 0 | L61: 0 | M61: 0 | N61: 0
B62: 39 | K62: 0 | L62: 0 | M62: 0 | N62: 0
B63: 40 | K63: 0 | L63: 0 | M63: 0 | N63: 0
B64: ∑ | D64: =SUM(D24:D63) -> 500 | E64: =SUM(E24:E63) -> 450 | F64: =SUM(F24:F63) -> 50 | L64: =SUM(L24:L63) -> 34.27142857 | N64: =SUM(N24:N63) -> 34.27142857
B66: Opmerkingen : | F66: Legende :
B67: 1° Enkel de reëel tot verbruik uitgeslagen producten tijdens het trimester
B68: 2° Indien volumes naar een derde worden overgebracht, onder schorsing van accijnzen | F68: VR = reëel volume | H68: A | I68: : categorie A
B69: of de in verbruikstelling voor rekening van een derde gebeurt, moeten de geschreven | F69: FE = corrigerende Energie Factor - tegenwaarde bio-ethanol | H69: B | I69: : categorie B
B70: verklaringen in het besluit betreffende "de regels en voorwaarden in verband | F70: VE = Gelijkwaardig Volume bio-ethanol = VR x FE | H70: C | I70: : categorie C
B71: met de trimestriële aangifte " steeds voorzien worden | F71: FC = Corrigerende Factor van de categorie
B72: 3° De in te vullen gegevens moeten uitgedrukt zijn in m³ bij 15°C | F72: VN = Nominaal volume= VR x FE x FC = VE x FC
B73: 4° Als meerdere types biobrandstoffen in een volume fossiel gemengd zijn dient dit volume
B74: fossiel slechts één keer in kolom E berekend te worden
B75: 5° De werkelijk bijgemengde biobrandstof dient aangegeven te worden
B77: Gezien om gevoegd te worden bij ons besluit van 15 november 2017 betreffende de rapportageverplichting van biobrandstoffen, minerale oliën en hun substitutieproducten van biologische oorsprong
E88: Van Koningswege :
E108: De Minister van Energie,
E109: Leefmilieu en Duurzame Ontwikkeling
E119: M.C. MARGHEM
B122: Ref. N° | C122: Brandstof | D122: Energie-inhoud in volume (calorische onderwaarde, MJ/l) | E122: Categorie | F122: FC | G122: FE
B123: Bio 1 | C123: Bio-ethanol (ethanol geproduceerd uit biomassa) | D123: 21 | E123: A / C (*) | F123: 1 / 2 (*) | G123: =D123/21 -> 1
B124: Bio 3 | C124: Bio-ETBE (op basis van bio-ethanol geproduceerde ethyl- tertiair- butylether) | D124: 27 (waarvan 37 % uit hernieuwbare bronnen) | E124: B / C (*) | F124: 1 / 2 (*) | G124: =27/21 -> 1.285714286
B125: Bio 4 | C125: Biomethanol (methanol geproduceerd uit biomassa, voor toepassing als biobrandstof) | D125: 16 | E125: B / C (*) | F125: 1 / 2 (*) | G125: =D125/21 -> 0.7619047619
B126: Bio 5 | C126: Bio-MTBE(op basis van biomethanol geproduceerde methyl tertiair butyl ether) | D126: 26 (waarvan 22 % uit hernieuwbare bronnen) | E126: B / C (*) | F126: 1 / 2 (*) | G126: =26/21 -> 1.238095238
B127: Bio 6 | C127: Bio-DME(op basis van biomassa geproduceerde dimethylether voor toepassing als biobrandstof) | D127: 19 | E127: B | F127: 1 / 2 (*) | G127: =D127/21 -> 0.9047619048
B128: Bio 7 | C128: Bio-TAEE (op basis van bio-ethanol geproduceerde ethyl-tertiair amylether) | D128: 29 (waarvan 29 % uit hernieuwbare bronnen) | E128: B / C (*) | F128: 1 / 2 (*) | G128: =29/21 -> 1.380952381
B129: Bio 8 | C129: Biobutanol (butanol uit biomassa, voor toepassing als biobrandstof) | D129: 27 | E129: B | F129: 1 / 2 (*) | G129: =D129/21 -> 1.285714286
B131: (*) Bij aanvaarding van dubbele telling

Sheet E95 - E10 (hidden)
B2: Bijlage I - Trimestriële balans met betrekking tot de verplichte bijmenging van biobrandstoffen in de hoeveelheden benzine E95 - E10 die tot verbruik worden uitgeslagen
B5: TRIMESTER VAN DE IN VERBRUIKSTELLING (voorbeeld 2017 / Q1) : | E5: =Biodiesel!E5 -> 2017 / Q1
B8: IDENTIFICATIE VAN DE MAATSCHAPPIJ (maatschappelijke zetel) : | E8: in te vullen | F8: automatisch ingevuld
B11: NAAM : | D11: =Biodiesel!D11 -> Petrol Company | E11: ACCIJNSNUMMER : | G11: =Biodiesel!G11 -> BE0400700968
B12: STRAAT EN NR. : | D12: =Biodiesel!D12 -> Stadstraat, 4 | E12: AANTAL ENTREPOTNUMMERS : | G12: =Biodiesel!G12 -> 3
B13: POSTCODE : | D13: =Biodiesel!D13 -> 1000 | E13: ENTREPOT EN ADRES NR 1 : | G13: =Biodiesel!G13 -> BE1B000013290 - Stadstraat, 4 - 1000 Brussel
B14: PLAATS : | D14: =Biodiesel!D14 -> Brussel | E14: ENTREPOT EN ADRES NR 2 : | G14: =Biodiesel!G14 -> BE1H000013298 - Hasseltweg, 45 - 2018 Antwerpen
B15: CONTACTPERSOON : | D15: =Biodiesel!D15 -> Louis Deprez | E15: ENTREPOT EN ADRES NR 3 : | G15: =Biodiesel!G15 -> BE1L000013294 - Bergenlaan, 241 - 3000 Leuven
B16: TELNR. : | D16: =Biodiesel!D16 -> 02 / 220 45 89
B17: MAILADRES : | D17: =Biodiesel!D17 -> louis.deprez@petrolcompany.be
B20: GEGEVENS VAN DE IN VERBUIK STELLING (1°) : | E20: Bij het invullen van de gegevens bij "waarvan biobrandstof" worden automatisch rijen ingevoegd (tot 40).
B22: Nr. lijn | C22: Datum | D22: Gemengde benzine EN228 (3°): E95 - E10 | E22: waarvan fossiel (3°)(4°) | F22: waarvan biobrandstof (2°)(3°) | G22: Type Bio (zie "Lijst duurzame biobrandstoffen") (5°) | H22: Categorie (A/B/C) | I22: N° van technisch dossier (cat. B / C) | J22: Inschrijvings N° BDD K.B. 26/11/2011 | K22: FE | L22: VE | M22: FC | N22: VN
B24: 1 | C24: 2016-12-11 | D24: 1000 | E24: 850 | F24: 120 | G24: Bio 1 | H24: A | K24: =IFERROR(VLOOKUP(G24,$B$122:$G$129,6,),0) -> 1 | L24: =IF(G24="Bio 3",F24*K24*0.37,IF(G24="Bio 5",0.22*F24*K24,IF(G24="Bio 7",0.29*F24*K24,F24*K24))) -> 120 | M24: =IF(OR(H24="A",H24="B"),1,IF(H24="C",2,0)) -> 1 | N24: =L24*M24 -> 120
B25: 2 | F25: 30 | G25: Bio 7 | H25: B | K25: 1.380952381 | L25: 12.01428571 | M25: 1 | N25: 12.01428571
B26: 3 | K26: 0 | L26: 0 | M26: 0 | N26: 0
B27: 4 | K27: 0 | L27: 0 | M27: 0 | N27: 0
B28: 5 | K28: 0 | L28: 0 | M28: 0 | N28: 0
B29: 6 | K29: 0 | L29: 0 | M29: 0 | N29: 0
B30: 7 | K30: 0 | L30: 0 | M30: 0 | N30: 0
B31: 8 | K31: 0 | L31: 0 | M31: 0 | N31: 0
B32: 9 | K32: 0 | L32: 0 | M32: 0 | N32: 0
B33: 10 | K33: 0 | L33: 0 | M33: 0 | N33: 0
B34: 11 | K34: 0 | L34: 0 | M34: 0 | N34: 0
B35: 12 | K35: 0 | L35: 0 | M35: 0 | N35: 0
B36: 13 | K36: 0 | L36: 0 | M36: 0 | N36: 0
B37: 14 | K37: 0 | L37: 0 | M37: 0 | N37: 0
B38: 15 | K38: 0 | L38: 0 | M38: 0 | N38: 0
B39: 16 | K39: 0 | L39: 0 | M39: 0 | N39: 0
B40: 17 | K40: 0 | L40: 0 | M40: 0 | N40: 0
B41: 18 | K41: 0 | L41: 0 | M41: 0 | N41: 0
B42: 19 | K42: 0 | L42: 0 | M42: 0 | N42: 0
B43: 20 | K43: 0 | L43: 0 | M43: 0 | N43: 0
B44: 21 | K44: 0 | L44: 0 | M44: 0 | N44: 0
B45: 22 | K45: 0 | L45: 0 | M45: 0 | N45: 0
B46: 23 | K46: 0 | L46: 0 | M46: 0 | N46: 0
B47: 24 | K47: 0 | L47: 0 | M47: 0 | N47: 0
B48: 25 | K48: 0 | L48: 0 | M48: 0 | N48: 0
B49: 26 | K49: 0 | L49: 0 | M49: 0 | N49: 0
B50: 27 | K50: 0 | L50: 0 | M50: 0 | N50: 0
B51: 28 | K51: 0 | L51: 0 | M51: 0 | N51: 0
B52: 29 | K52: 0 | L52: 0 | M52: 0 | N52: 0
B53: 30 | K53: 0 | L53: 0 | M53: 0 | N53: 0
B54: 31 | K54: 0 | L54: 0 | M54: 0 | N54: 0
B55: 32 | K55: 0 | L55: 0 | M55: 0 | N55: 0
B56: 33 | K56: 0 | L56: 0 | M56: 0 | N56: 0
B57: 34 | K57: 0 | L57: 0 | M57: 0 | N57: 0
B58: 35 | K58: 0 | L58: 0 | M58: 0 | N58: 0
B59: 36 | K59: 0 | L59: 0 | M59: 0 | N59: 0
B60: 37 | K60: 0 | L60: 0 | M60: 0 | N60: 0
B61: 38 | K61: 0 | L61: 0 | M61: 0 | N61: 0
B62: 39 | K62: 0 | L62: 0 | M62: 0 | N62: 0
B63: 40 | K63: 0 | L63: 0 | M63: 0 | N63: 0
B64: ∑ | D64: =SUM(D24:D63) -> 1000 | E64: =SUM(E24:E63) -> 850 | F64: =SUM(F24:F63) -> 150 | L64: =SUM(L24:L63) -> 132.0142857 | N64: =SUM(N24:N63) -> 132.0142857
B66: Opmerkingen : | F66: Legende :
B67: 1° Enkel de reëel tot verbruik uitgeslagen producten tijdens het trimester
B68: 2° Indien volumes naar een derde worden overgebracht, onder schorsing van accijnzen | F68: VR = reëel volume | H68: A | I68: : categorie A
B69: of de in verbruikstelling voor rekening van een derde gebeurt, moeten de geschreven | F69: FE = corrigerende Energie Factor - tegenwaarde bio-ethanol | H69: B | I69: : categorie B
B70: verklaringen in het besluit betreffende "de regels en voorwaarden in verband | F70: VE = Gelijkwaardig Volume bio-ethanol = VR x FE | H70: C | I70: : categorie C
B71: met de trimestriële aangifte " steeds voorzien worden | F71: FC = Corrigerende Factor van de categorie
B72: 3° De in te vullen gegevens moeten uitgedrukt zijn in m³ bij 15°C | F72: VN = Nominaal volume= VR x FE x FC = VE x FC
B73: 4° Als meerdere types biobrandstoffen in een volume fossiel gemengd zijn dient dit volume
B74: fossiel slechts één keer in kolom E berekend te worden
B75: 5° De werkelijk bijgemengde biobrandstof dient aangegeven te worden
B77: Gezien om gevoegd te worden bij ons besluit van 15 november 2017 betreffende de rapportageverplichting van biobrandstoffen, minerale oliën en hun substitutieproducten van biologische oorsprong
E88: Van Koningswege :
E108: De Minister van Energie,
E109: Leefmilieu en Duurzame Ontwikkeling
E119: M.C. MARGHEM
B122: Ref. N° | C122: Brandstof | D122: Energie-inhoud in volume (calorische onderwaarde, MJ/l) | E122: Categorie | F122: FC | G122: FE
B123: Bio 1 | C123: Bio-ethanol (ethanol geproduceerd uit biomassa) | D123: 21 | E123: A / C (*) | F123: 1 / 2 (*) | G123: =D123/21 -> 1
B124: Bio 3 | C124: Bio-ETBE (op basis van bio-ethanol geproduceerde ethyl- tertiair- butylether) | D124: 27 (waarvan 37 % uit hernieuwbare bronnen) | E124: B / C (*) | F124: 1 / 2 (*) | G124: =27/21 -> 1.285714286
B125: Bio 4 | C125: Biomethanol (methanol geproduceerd uit biomassa, voor toepassing als biobrandstof) | D125: 16 | E125: B / C (*) | F125: 1 / 2 (*) | G125: =D125/21 -> 0.7619047619
B126: Bio 5 | C126: Bio-MTBE(op basis van biomethanol geproduceerde methyl tertiair butyl ether) | D126: 26 (waarvan 22 % uit hernieuwbare bronnen) | E126: B / C (*) | F126: 1 / 2 (*) | G126: =26/21 -> 1.238095238
B127: Bio 6 | C127: Bio-DME(op basis van biomassa geproduceerde dimethylether voor toepassing als biobrandstof) | D127: 19 | E127: B | F127: 1 / 2 (*) | G127: =D127/21 -> 0.9047619048
B128: Bio 7 | C128: Bio-TAEE (op basis van bio-ethanol geproduceerde ethyl-tertiair amylether) | D128: 29 (waarvan 29 % uit hernieuwbare bronnen) | E128: B / C (*) | F128: 1 / 2 (*) | G128: =29/21 -> 1.380952381
B129: Bio 8 | C129: Biobutanol (butanol uit biomassa, voor toepassing als biobrandstof) | D129: 27 | E129: B | F129: 1 / 2 (*) | G129: =D129/21 -> 1.285714286
B131: (*) Bij aanvaarding van dubbele telling

Sheet E98 - E5 (hidden)
B2: Bijlage I - Trimestriële balans met betrekking tot de verplichte bijmenging van biobrandstoffen in de hoeveelheden benzine E98 - E5 die tot verbruik worden uitgeslagen
B5: TRIMESTER VAN DE IN VERBRUIKSTELLING (voorbeeld 2017 / Q1) : | E5: =Biodiesel!E5 -> 2017 / Q1
B8: IDENTIFICATIE VAN DE MAATSCHAPPIJ (maatschappelijke zetel) : | E8: in te vullen | F8: automatisch ingevuld
B11: NAAM : | D11: =Biodiesel!D11 -> Petrol Company | E11: ACCIJNSNUMMER : | G11: =Biodiesel!G11 -> BE0400700968
B12: STRAAT EN NR. : | D12: =Biodiesel!D12 -> Stadstraat, 4 | E12: AANTAL ENTREPOTNUMMERS : | G12: =Biodiesel!G12 -> 3
B13: POSTCODE : | D13: =Biodiesel!D13 -> 1000 | E13: ENTREPOT EN ADRES NR 1 : | G13: =Biodiesel!G13 -> BE1B000013290 - Stadstraat, 4 - 1000 Brussel
B14: PLAATS : | D14: =Biodiesel!D14 -> Brussel | E14: ENTREPOT EN ADRES NR 2 : | G14: =Biodiesel!G14 -> BE1H000013298 - Hasseltweg, 45 - 2018 Antwerpen
B15: CONTACTPERSOON : | D15: =Biodiesel!D15 -> Louis Deprez | E15: ENTREPOT EN ADRES NR 3 : | G15: =Biodiesel!G15 -> BE1L000013294 - Bergenlaan, 241 - 3000 Leuven
B16: TELNR. : | D16: =Biodiesel!D16 -> 02 / 220 45 89
B17: MAILADRES : | D17: =Biodiesel!D17 -> louis.deprez@petrolcompany.be
B20: GEGEVENS VAN DE IN VERBUIK STELLING (1°) : | E20: Bij het invullen van de gegevens bij "waarvan biobrandstof" worden automatisch rijen ingevoegd (tot 40).
B22: Nr. lijn | C22: Datum | D22: Gemengde benzine EN228 (3°): E98 - E5 | E22: waarvan fossiel (3°)(4°) | F22: waarvan biobrandstof (2°)(3°) | G22: Type Bio (zie "Lijst duurzame biobrandstoffen") (5°) | H22: Categorie (A/B/C) | I22: N° van technisch dossier (cat. B / C) | J22: Inschrijvings N° BDD K.B. 26/11/2011 | K22: FE | L22: VE | M22: FC | N22: VN
B24: 1 | C24: 2016-12-11 | D24: 500 | E24: 450 | F24: 20 | G24: Bio 1 | H24: A | K24: =IFERROR(VLOOKUP(G24,$B$122:$G$129,6,),0) -> 1 | L24: =IF(G24="Bio 3",F24*K24*0.37,IF(G24="Bio 5",0.22*F24*K24,IF(G24="Bio 7",0.29*F24*K24,F24*K24))) -> 20 | M24: =IF(OR(H24="A",H24="B"),1,IF(H24="C",2,0)) -> 1 | N24: =L24*M24 -> 20
B25: 2 | F25: 30 | G25: Bio 7 | H25: C | K25: 1.380952381 | L25: 12.01428571 | M25: 2 | N25: 24.02857143
B26: 3 | K26: 0 | L26: 0 | M26: 0 | N26: 0
B27: 4 | K27: 0 | L27: 0 | M27: 0 | N27: 0
B28: 5 | K28: 0 | L28: 0 | M28: 0 | N28: 0
B29: 6 | K29: 0 | L29: 0 | M29: 0 | N29: 0
B30: 7 | K30: 0 | L30: 0 | M30: 0 | N30: 0
B31: 8 | K31: 0 | L31: 0 | M31: 0 | N31: 0
B32: 9 | K32: 0 | L32: 0 | M32: 0 | N32: 0
B33: 10 | K33: 0 | L33: 0 | M33: 0 | N33: 0
B34: 11 | K34: 0 | L34: 0 | M34: 0 | N34: 0
B35: 12 | K35: 0 | L35: 0 | M35: 0 | N35: 0
B36: 13 | K36: 0 | L36: 0 | M36: 0 | N36: 0
B37: 14 | K37: 0 | L37: 0 | M37: 0 | N37: 0
B38: 15 | K38: 0 | L38: 0 | M38: 0 | N38: 0
B39: 16 | K39: 0 | L39: 0 | M39: 0 | N39: 0
B40: 17 | K40: 0 | L40: 0 | M40: 0 | N40: 0
B41: 18 | K41: 0 | L41: 0 | M41: 0 | N41: 0
B42: 19 | K42: 0 | L42: 0 | M42: 0 | N42: 0
B43: 20 | K43: 0 | L43: 0 | M43: 0 | N43: 0
B44: 21 | K44: 0 | L44: 0 | M44: 0 | N44: 0
B45: 22 | K45: 0 | L45: 0 | M45: 0 | N45: 0
B46: 23 | K46: 0 | L46: 0 | M46: 0 | N46: 0
B47: 24 | K47: 0 | L47: 0 | M47: 0 | N47: 0
B48: 25 | K48: 0 | L48: 0 | M48: 0 | N48: 0
B49: 26 | K49: 0 | L49: 0 | M49: 0 | N49: 0
B50: 27 | K50: 0 | L50: 0 | M50: 0 | N50: 0
B51: 28 | K51: 0 | L51: 0 | M51: 0 | N51: 0
B52: 29 | K52: 0 | L52: 0 | M52: 0 | N52: 0
B53: 30 | K53: 0 | L53: 0 | M53: 0 | N53: 0
B54: 31 | K54: 0 | L54: 0 | M54: 0 | N54: 0
B55: 32 | K55: 0 | L55: 0 | M55: 0 | N55: 0
B56: 33 | K56: 0 | L56: 0 | M56: 0 | N56: 0
B57: 34 | K57: 0 | L57: 0 | M57: 0 | N57: 0
B58: 35 | K58: 0 | L58: 0 | M58: 0 | N58: 0
B59: 36 | K59: 0 | L59: 0 | M59: 0 | N59: 0
B60: 37 | K60: 0 | L60: 0 | M60: 0 | N60: 0
B61: 38 | K61: 0 | L61: 0 | M61: 0 | N61: 0
B62: 39 | K62: 0 | L62: 0 | M62: 0 | N62: 0
B63: 40 | K63: 0 | L63: 0 | M63: 0 | N63: 0
B64: ∑ | D64: =SUM(D24:D63) -> 500 | E64: =SUM(E24:E63) -> 450 | F64: =SUM(F24:F63) -> 50 | L64: =SUM(L24:L63) -> 32.01428571 | N64: =SUM(N24:N63) -> 44.02857143
B66: Opmerkingen : | F66: Legende :
B67: 1° Enkel de reëel tot verbruik uitgeslagen producten tijdens het trimester
B68: 2° Indien volumes naar een derde worden overgebracht, onder schorsing van accijnzen | F68: VR = reëel volume | H68: A | I68: : categorie A
B69: of de in verbruikstelling voor rekening van een derde gebeurt, moeten de geschreven | F69: FE = corrigerende Energie Factor - tegenwaarde bio-ethanol | H69: B | I69: : categorie B
B70: verklaringen in het besluit betreffende "de regels en voorwaarden in verband | F70: VE = Gelijkwaardig Volume bio-ethanol = VR x FE | H70: C | I70: : categorie C
B71: met de trimestriële aangifte " steeds voorzien worden | F71: FC = Corrigerende Factor van de categorie
B72: 3° De in te vullen gegevens moeten uitgedrukt zijn in m³ bij 15°C | F72: VN = Nominaal volume= VR x FE x FC = VE x FC
B73: 4° Als meerdere types biobrandstoffen in een volume fossiel gemengd zijn dient dit volume
B74: fossiel slechts één keer in kolom E berekend te worden
B75: 5° De werkelijk bijgemengde biobrandstof dient aangegeven te worden
B77: Gezien om gevoegd te worden bij ons besluit van 15 november 2017 betreffende de rapportageverplichting van biobrandstoffen, minerale oliën en hun substitutieproducten van biologische oorsprong
E88: Van Koningswege :
E108: De Minister van Energie,
E109: Leefmilieu en Duurzame Ontwikkeling
E119: M.C. MARGHEM
B122: Ref. N° | C122: Brandstof | D122: Energie-inhoud in volume (calorische onderwaarde, MJ/l) | E122: Categorie | F122: FC | G122: FE
B123: Bio 1 | C123: Bio-ethanol (ethanol geproduceerd uit biomassa) | D123: 21 | E123: A / C (*) | F123: 1 / 2 (*) | G123: =D123/21 -> 1
B124: Bio 3 | C124: Bio-ETBE (op basis van bio-ethanol geproduceerde ethyl- tertiair- butylether) | D124: 27 (waarvan 37 % uit hernieuwbare bronnen) | E124: B / C (*) | F124: 1 / 2 (*) | G124: =27/21 -> 1.285714286
B125: Bio 4 | C125: Biomethanol (methanol geproduceerd uit biomassa, voor toepassing als biobrandstof) | D125: 16 | E125: B / C (*) | F125: 1 / 2 (*) | G125: =D125/21 -> 0.7619047619
B126: Bio 5 | C126: Bio-MTBE(op basis van biomethanol geproduceerde methyl tertiair butyl ether) | D126: 26 (waarvan 22 % uit hernieuwbare bronnen) | E126: B / C (*) | F126: 1 / 2 (*) | G126: =26/21 -> 1.238095238
B127: Bio 6 | C127: Bio-DME(op basis van biomassa geproduceerde dimethylether voor toepassing als biobrandstof) | D127: 19 | E127: B | F127: 1 / 2 (*) | G127: =D127/21 -> 0.9047619048
B128: Bio 7 | C128: Bio-TAEE (op basis van bio-ethanol geproduceerde ethyl-tertiair amylether) | D128: 29 (waarvan 29 % uit hernieuwbare bronnen) | E128: B / C (*) | F128: 1 / 2 (*) | G128: =29/21 -> 1.380952381
B129: Bio 8 | C129: Biobutanol (butanol uit biomassa, voor toepassing als biobrandstof) | D129: 27 | E129: B | F129: 1 / 2 (*) | G129: =D129/21 -> 1.285714286
B131: (*) Bij aanvaarding van dubbele telling

Sheet E98 - E10 (hidden)
B2: Bijlage I - Trimestriële balans met betrekking tot de verplichte bijmenging van biobrandstoffen in de hoeveelheden benzine E98 - E10 die tot verbruik worden uitgeslagen
B5: TRIMESTER VAN DE IN VERBRUIKSTELLING (voorbeeld 2017 / Q1) : | E5: =Biodiesel!E5 -> 2017 / Q1
B8: IDENTIFICATIE VAN DE MAATSCHAPPIJ (maatschappelijke zetel) : | E8: in te vullen | F8: automatisch ingevuld
B11: NAAM : | D11: =Biodiesel!D11 -> Petrol Company | E11: ACCIJNSNUMMER : | G11: =Biodiesel!G11 -> BE0400700968
B12: STRAAT EN NR. : | D12: =Biodiesel!D12 -> Stadstraat, 4 | E12: AANTAL ENTREPOTNUMMERS : | G12: =Biodiesel!G12 -> 3
B13: POSTCODE : | D13: =Biodiesel!D13 -> 1000 | E13: ENTREPOT EN ADRES NR 1 : | G13: =Biodiesel!G13 -> BE1B000013290 - Stadstraat, 4 - 1000 Brussel
B14: PLAATS : | D14: =Biodiesel!D14 -> Brussel | E14: ENTREPOT EN ADRES NR 2 : | G14: =Biodiesel!G14 -> BE1H000013298 - Hasseltweg, 45 - 2018 Antwerpen
B15: CONTACTPERSOON : | D15: =Biodiesel!D15 -> Louis Deprez | E15: ENTREPOT EN ADRES NR 3 : | G15: =Biodiesel!G15 -> BE1L000013294 - Bergenlaan, 241 - 3000 Leuven
B16: TELNR. : | D16: =Biodiesel!D16 -> 02 / 220 45 89
B17: MAILADRES : | D17: =Biodiesel!D17 -> louis.deprez@petrolcompany.be
B20: GEGEVENS VAN DE IN VERBUIK STELLING (1°) : | E20: Bij het invullen van de gegevens bij "waarvan biobrandstof" worden automatisch rijen ingevoegd (tot 40).
B22: Nr. lijn | C22: Datum | D22: Gemengde benzine EN228 (3°): E98 - E10 | E22: waarvan fossiel (3°)(4°) | F22: waarvan biobrandstof (2°)(3°) | G22: Type Bio (zie "Lijst duurzame biobrandstoffen") (5°) | H22: Categorie (A/B/C) | I22: N° van technisch dossier (cat. B / C) | J22: Inschrijvings N° BDD K.B. 26/11/2011 | K22: FE | L22: VE | M22: FC | N22: VN
B24: 1 | C24: 2016-12-11 | D24: 1000 | E24: 950 | F24: 40 | G24: Bio 1 | H24: A | K24: =IFERROR(VLOOKUP(G24,$B$122:$G$129,6,),0) -> 1 | L24: =IF(G24="Bio 3",F24*K24*0.37,IF(G24="Bio 5",0.22*F24*K24,IF(G24="Bio 7",0.29*F24*K24,F24*K24))) -> 40 | M24: =IF(OR(H24="A",H24="B"),1,IF(H24="C",2,0)) -> 1 | N24: =L24*M24 -> 40
B25: 2 | F25: 10 | G25: Bio 7 | H25: C | K25: 1.380952381 | L25: 4.004761905 | M25: 2 | N25: =L25*M25 -> 8.00952381
B26: 3 | K26: 0 | L26: 0 | M26: 0 | N26: 0
B27: 4 | K27: 0 | L27: 0 | M27: 0 | N27: 0
B28: 5 | K28: 0 | L28: 0 | M28: 0 | N28: 0
B29: 6 | K29: 0 | L29: 0 | M29: 0 | N29: 0
B30: 7 | K30: 0 | L30: 0 | M30: 0 | N30: 0
B31: 8 | K31: 0 | L31: 0 | M31: 0 | N31: 0
B32: 9 | K32: 0 | L32: 0 | M32: 0 | N32: 0
B33: 10 | K33: 0 | L33: 0 | M33: 0 | N33: 0
B34: 11 | K34: 0 | L34: 0 | M34: 0 | N34: 0
B35: 12 | K35: 0 | L35: 0 | M35: 0 | N35: 0
B36: 13 | K36: 0 | L36: 0 | M36: 0 | N36: 0
B37: 14 | K37: 0 | L37: 0 | M37: 0 | N37: 0
B38: 15 | K38: 0 | L38: 0 | M38: 0 | N38: 0
B39: 16 | K39: 0 | L39: 0 | M39: 0 | N39: 0
B40: 17 | K40: 0 | L40: 0 | M40: 0 | N40: 0
B41: 18 | K41: 0 | L41: 0 | M41: 0 | N41: 0
B42: 19 | K42: 0 | L42: 0 | M42: 0 | N42: 0
B43: 20 | K43: 0 | L43: 0 | M43: 0 | N43: 0
B44: 21 | K44: 0 | L44: 0 | M44: 0 | N44: 0
B45: 22 | K45: 0 | L45: 0 | M45: 0 | N45: 0
B46: 23 | K46: 0 | L46: 0 | M46: 0 | N46: 0
B47: 24 | K47: 0 | L47: 0 | M47: 0 | N47: 0
B48: 25 | K48: 0 | L48: 0 | M48: 0 | N48: 0
B49: 26 | K49: 0 | L49: 0 | M49: 0 | N49: 0
B50: 27 | K50: 0 | L50: 0 | M50: 0 | N50: 0
B51: 28 | K51: 0 | L51: 0 | M51: 0 | N51: 0
B52: 29 | K52: 0 | L52: 0 | M52: 0 | N52: 0
B53: 30 | K53: 0 | L53: 0 | M53: 0 | N53: 0
B54: 31 | K54: 0 | L54: 0 | M54: 0 | N54: 0
B55: 32 | K55: 0 | L55: 0 | M55: 0 | N55: 0
B56: 33 | K56: 0 | L56: 0 | M56: 0 | N56: 0
B57: 34 | K57: 0 | L57: 0 | M57: 0 | N57: 0
B58: 35 | K58: 0 | L58: 0 | M58: 0 | N58: 0
B59: 36 | K59: 0 | L59: 0 | M59: 0 | N59: 0
B60: 37 | K60: 0 | L60: 0 | M60: 0 | N60: 0
B61: 38 | K61: 0 | L61: 0 | M61: 0 | N61: 0
B62: 39 | K62: 0 | L62: 0 | M62: 0 | N62: 0
B63: 40 | K63: 0 | L63: 0 | M63: 0 | N63: 0
B64: ∑ | D64: =SUM(D24:D63) -> 1000 | E64: =SUM(E24:E63) -> 950 | F64: =SUM(F24:F63) -> 50 | L64: =SUM(L24:L63) -> 44.0047619 | N64: =SUM(N24:N63) -> 48.00952381
B66: Opmerkingen : | F66: Legende :
B67: 1° Enkel de reëel tot verbruik uitgeslagen producten tijdens het trimester
B68: 2° Indien volumes naar een derde worden overgebracht, onder schorsing van accijnzen | F68: VR = reëel volume | H68: A | I68: : categorie A
B69: of de in verbruikstelling voor rekening van een derde gebeurt, moeten de geschreven | F69: FE = corrigerende Energie Factor - tegenwaarde bio-ethanol | H69: B | I69: : categorie B
B70: verklaringen in het besluit betreffende "de regels en voorwaarden in verband | F70: VE = Gelijkwaardig Volume bio-ethanol = VR x FE | H70: C | I70: : categorie C
B71: met de trimestriële aangifte " steeds voorzien worden | F71: FC = Corrigerende Factor van de categorie
B72: 3° De in te vullen gegevens moeten uitgedrukt zijn in m³ bij 15°C | F72: VN = Nominaal volume= VR x FE x FC = VE x FC
B73: 4° Als meerdere types biobrandstoffen in een volume fossiel gemengd zijn dient dit volume
B74: fossiel slechts één keer in kolom E berekend te worden
B75: 5° De werkelijk bijgemengde biobrandstof dient aangegeven te worden
B77: Gezien om gevoegd te worden bij ons besluit van 15 november 2017 betreffende de rapportageverplichting van biobrandstoffen, minerale oliën en hun substitutieproducten van biologische oorsprong
E88: Van Koningswege :
E108: De Minister van Energie,
E109: Leefmilieu en Duurzame Ontwikkeling
E119: M.C. MARGHEM
B122: Ref. N° | C122: Brandstof | D122: Energie-inhoud in volume (calorische onderwaarde, MJ/l) | E122: Categorie | F122: FC | G122: FE
B123: Bio 1 | C123: Bio-ethanol (ethanol geproduceerd uit biomassa) | D123: 21 | E123: A / C (*) | F123: 1 / 2 (*) | G123: =D123/21 -> 1
B124: Bio 3 | C124: Bio-ETBE (op basis van bio-ethanol geproduceerde ethyl- tertiair- butylether) | D124: 27 (waarvan 37 % uit hernieuwbare bronnen) | E124: B / C (*) | F124: 1 / 2 (*) | G124: =27/21 -> 1.285714286
B125: Bio 4 | C125: Biomethanol (methanol geproduceerd uit biomassa, voor toepassing als biobrandstof) | D125: 16 | E125: B / C (*) | F125: 1 / 2 (*) | G125: =D125/21 -> 0.7619047619
B126: Bio 5 | C126: Bio-MTBE(op basis van biomethanol geproduceerde methyl tertiair butyl ether) | D126: 26 (waarvan 22 % uit hernieuwbare bronnen) | E126: B / C (*) | F126: 1 / 2 (*) | G126: =26/21 -> 1.238095238
B127: Bio 6 | C127: Bio-DME(op basis van biomassa geproduceerde dimethylether voor toepassing als biobrandstof) | D127: 19 | E127: B | F127: 1 / 2 (*) | G127: =D127/21 -> 0.9047619048
B128: Bio 7 | C128: Bio-TAEE (op basis van bio-ethanol geproduceerde ethyl-tertiair amylether) | D128: 29 (waarvan 29 % uit hernieuwbare bronnen) | E128: B / C (*) | F128: 1 / 2 (*) | G128: =29/21 -> 1.380952381
B129: Bio 8 | C129: Biobutanol (butanol uit biomassa, voor toepassing als biobrandstof) | D129: 27 | E129: B | F129: 1 / 2 (*) | G129: =D129/21 -> 1.285714286
B131: (*) Bij aanvaarding van dubbele telling

Sheet Bio-ethanol (hidden)
B2: Bijlage I - Trimestriële balans met betrekking tot de verplichte bijmenging van biobrandstoffen in de hoeveelheden benzine die tot verbruik worden uitgeslagen
B5: TRIMESTER VAN DE IN VERBRUIKSTELLING (voorbeeld 2017 / Q1) : | E5: =Biodiesel!E5 -> 2017 / Q1
B8: IDENTIFICATIE VAN DE MAATSCHAPPIJ (maatschappelijke zetel) : | E8: in te vullen | F8: automatisch ingevuld
B11: NAAM : | C11: =Biodiesel!D11 -> Petrol Company | D11: ACCIJNSNUMMER : | E11: =Biodiesel!G11 -> BE0400700968
B12: STRAAT EN NR. : | C12: =Biodiesel!D12 -> Stadstraat, 4 | D12: AANTAL ENTREPOTNUMMERS : | E12: =Biodiesel!G12 -> 3
B13: POSTCODE : | C13: =Biodiesel!D13 -> 1000 | D13: ENTREPOT EN ADRES NR 1 : | E13: =Biodiesel!G13 -> BE1B000013290 - Stadstraat, 4 - 1000 Brussel
B14: PLAATS : | C14: =Biodiesel!D14 -> Brussel | D14: ENTREPOT EN ADRES NR 2 : | E14: =Biodiesel!G14 -> BE1H000013298 - Hasseltweg, 45 - 2018 Antwerpen
B15: CONTACTPERSOON : | C15: =Biodiesel!D15 -> Louis Deprez | D15: ENTREPOT EN ADRES NR 3 : | E15: =Biodiesel!G15 -> BE1L000013294 - Bergenlaan, 241 - 3000 Leuven
B16: TELNR. : | C16: =Biodiesel!D16 -> 02 / 220 45 89
B17: MAILADRES : | C17: =Biodiesel!D17 -> louis.deprez@petrolcompany.be
B20: Synthese :
C22: Bereikte waarde (m³) | D22: % bereikt
B23: VR cat. A | C23: =SUMIF('E95 - E5'!H24:H63,"A",'E95 - E5'!F24:F63)+SUMIF('E95 - E10'!H24:H63,"A",'E95 - E10'!F24:F63)+SUMIF('E98 - E5'!H24:H63,"A",'E98 - E5'!F24:F63)+SUMIF('E98 - E10'!H24:H63,"A",'E98 - E10'!F24:F63) -> 200 | D23: =C23/('E95 - E5'!D$64+'E95 - E10'!D$64+'E98 - E5'!D$64+'E98 - E10'!D$64) -> 0.06666666667
B24: VR cat. B | C24: =SUMIF('E95 - E5'!H24:H63,"B",'E95 - E5'!F24:F63)+SUMIF('E95 - E10'!H24:H63,"B",'E95 - E10'!F24:F63)+SUMIF('E98 - E5'!H24:H63,"B",'E98 - E5'!F24:F63)+SUMIF('E98 - E10'!H24:H63,"B",'E98 - E10'!F24:F63) -> 60 | D24: =C24/('E95 - E5'!D$64+'E95 - E10'!D$64+'E98 - E5'!D$64+'E98 - E10'!D$64) -> 0.02
B25: VR cat. C | C25: =SUMIF('E95 - E5'!H24:H63,"C",'E95 - E5'!F24:F63)+SUMIF('E95 - E10'!H24:H63,"C",'E95 - E10'!F24:F63)+SUMIF('E98 - E5'!H24:H63,"C",'E98 - E5'!F24:F63)+SUMIF('E98 - E10'!H24:H63,"C",'E98 - E10'!F24:F63) -> 40 | D25: =C25/('E95 - E5'!D$64+'E95 - E10'!D$64+'E98 - E5'!D$64+'E98 - E10'!D$64) -> 0.01333333333
B26: VR totaal (A+B+C) | C26: =C23+C24+C25 -> 300 | D26: =C26/('E95 - E5'!D$64+'E95 - E10'!D$64+'E98 - E5'!D$64+'E98 - E10'!D$64) -> 0.1
B27: VN cat. A | C27: =SUMIF('E95 - E5'!H24:H63,"A",'E95 - E5'!N24:N63)+SUMIF('E95 - E10'!H24:H63,"A",'E95 - E10'!N24:N63)+SUMIF('E98 - E5'!H24:H63,"A",'E98 - E5'!N24:N63)+SUMIF('E98 - E10'!H24:H63,"A",'E98 - E10'!N24:N63) -> 200 | D27: =C27/('E95 - E5'!E$64+'E95 - E10'!E$64+'E98 - E5'!E$64+'E98 - E10'!E$64+'E95 - E5'!L64+'E95 - E10'!L64+'E98 - E5'!L64+'E98 - E10'!L64) -> 0.06797392391
B28: VN cat. B | C28: =SUMIF('E95 - E5'!H24:H63,"B",'E95 - E5'!N24:N63)+SUMIF('E95 - E10'!H24:H63,"B",'E95 - E10'!N24:N63)+SUMIF('E98 - E5'!H24:H63,"B",'E98 - E5'!N24:N63)+SUMIF('E98 - E10'!H24:H63,"B",'E98 - E10'!N24:N63) -> 26.28571429 | D28: =C28/('E95 - E5'!E$64+'E95 - E10'!E$64+'E98 - E5'!E$64+'E98 - E10'!E$64+'E95 - E5'!L64+'E95 - E10'!L64+'E98 - E5'!L64+'E98 - E10'!L64) -> 0.008933715714
B29: VN cat. C | C29: =SUMIF('E95 - E5'!H24:H63,"C",'E95 - E5'!N24:N63)+SUMIF('E95 - E10'!H24:H63,"C",'E95 - E10'!N24:N63)+SUMIF('E98 - E5'!H24:H63,"C",'E98 - E5'!N24:N63)+SUMIF('E98 - E10'!H24:H63,"C",'E98 - E10'!N24:N63) -> 32.03809524 | D29: =C29/('E95 - E5'!E$64+'E95 - E10'!E$64+'E98 - E5'!E$64+'E98 - E10'!E$64+'E95 - E5'!L64+'E95 - E10'!L64+'E98 - E5'!L64+'E98 - E10'!L64) -> 0.01088877524 | E29: Verplichting: maximum 1,5 %
B30: VN totaal (A+B+C) | C30: =C29+C28+C27 -> 258.3238095 | D30: =C30/('E95 - E5'!E$64+'E95 - E10'!E$64+'E98 - E5'!E$64+'E98 - E10'!E$64+'E95 - E5'!L64+'E95 - E10'!L64+'E98 - E5'!L64+'E98 - E10'!L64) -> 0.08779641486 | E30: Verplichting: minimum 8,5 %
B32: Legende : | E32: ∆ stocks (*) :
F33: I | H33: II | K33: III
B34: VR = reëel volume | E34: Voorraad begin trimester | F34: Aankopen | H34: Verkopen | K34: Inverbruikstellingen | L34: Voorraad eind trimester
B35: FE = corrigerende Energie Factor - tegenwaarde bio-ethanol | F35: Gemengd | G35: Puur | H35: Gemengd | I35: Puur | J35: Uitgevoerd
B36: VE = Gelijkwaardig Volume bio-ethanol = VR x FE | D36: Categorie A | E36: 200 | F36: 50 | G36: 30 | H36: 10 | I36: 15 | J36: 5 | K36: =C23 -> 200 | L36: =E36+F36+G36-H36-I36-J36-K36 -> 50
B37: FC = Corrigerende Factor van de categorie | D37: Categorie B | E37: 150 | F37: 30 | G37: 15 | H37: 5 | I37: 10 | J37: 20 | K37: =C24 -> 60 | L37: =E37+F37+G37-H37-I37-J37-K37 -> 100
B38: VN = Nominaal volume= VR x FE x FC = VE x FC | D38: Categorie C | E38: 150 | F38: 30 | G38: 15 | H38: 5 | I38: 10 | J38: 20 | K38: =C25 -> 40 | L38: =E38+F38+G38-H38-I38-J38-K38 -> 120
E39: (*) Enkel reële volumes biobrandstoffen
B42: Gezien om gevoegd te worden bij ons besluit van 15 november 2017 betreffende de rapportageverplichting van biobrandstoffen, minerale oliën en hun substitutieproducten van biologische oorsprong
E53: Van Koningswege :
E73: De Minister van Energie,
E74: Leefmilieu en Duurzame Ontwikkeling
E84: M.C. MARGHEM
